{"text_format":"1","workbook":"xlsx","n_sheets":13,"sheets":["Профиль","ОП","Тип мышления","ОТМ","Эрудит (А)","Эрудит (К)","Эрудит (О)","Эрудит (З)","ОЭ","Проф. склонности","ОПС","Профиль обучения","Итог"],"not_rendered":{"charts":0,"images":1,"macros":1,"external_links":0,"defined_names":0,"comments":0,"pivot_tables":0},"unopened":[],"bounds":{"document_bytes":16777216,"sheet_cells":100000,"rows_first":2000,"rows_last":500,"rows_between":2000,"halvings":0,"cell_chars":16384,"cell_head_chars":4096},"cells_cut":0,"cells_raw":0,"read":"whole","date_system":"1900"}

{"sheet":"Профиль","index":0,"n_rows":59,"n_cols":34,"rows_kept":59,"cut":false,"hidden":false,"merged":[[26,1,26,10],[27,1,27,10],[28,1,28,10],[27,11,27,12],[28,11,28,12],[32,1,32,10],[29,1,29,10],[30,1,30,10],[31,1,31,10],[29,11,29,12],[30,11,30,12],[20,1,20,10],[21,1,21,10],[22,1,22,10],[21,11,21,12],[22,11,22,12],[23,1,23,10],[24,1,24,10],[25,1,25,10],[23,11,23,12],[24,11,24,12],[25,11,25,12],[51,1,51,10],[52,1,52,10],[1,1,1,3],[1,4,1,9],[1,11,1,12],[1,13,1,15],[2,1,2,3],[2,4,2,9],[9,1,9,10],[10,1,10,10],[4,0,7,17],[11,1,11,10],[12,1,12,10],[13,1,13,10],[14,1,14,10],[15,1,15,10],[16,1,16,10],[15,11,15,12],[16,11,16,12],[17,1,17,10],[18,1,18,10],[19,1,19,10],[17,11,17,12],[18,11,18,12],[58,1,58,10],[33,1,33,10],[34,1,34,10],[35,1,35,10],[36,1,36,10],[37,1,37,10],[38,1,38,10],[39,1,39,10],[40,1,40,10],[41,1,41,10],[42,1,42,10],[43,1,43,10],[44,1,44,10],[45,1,45,10],[46,1,46,10],[47,1,47,10],[53,1,53,10],[54,1,54,10],[55,1,55,10],[56,1,56,10],[57,1,57,10],[48,1,48,10],[49,1,49,10],[50,1,50,10],[31,11,31,12],[26,11,26,12],[20,11,20,12],[9,11,9,12],[10,11,10,12],[11,11,11,12],[12,11,12,12],[13,11,13,12],[14,11,14,12],[19,11,19,12],[40,11,40,12],[41,11,41,12],[38,11,38,12],[39,11,39,12],[36,11,36,12],[37,11,37,12],[34,11,34,12],[35,11,35,12],[32,11,32,12],[33,11,33,12],[58,11,58,12],[52,11,52,12],[53,11,53,12],[46,11,46,12],[47,11,47,12],[44,11,44,12],[45,11,45,12],[42,11,42,12],[43,11,43,12],[54,11,54,12],[55,11,55,12],[56,11,56,12],[57,11,57,12],[48,11,48,12],[49,11,49,12],[50,11,50,12],[51,11,51,12]]}
[null,null,null,null,null,null,null,null,null,null,null,null,null,null,null,null,null,null,null,null,null,null,null,null,null,null,null,null,null,null,null,null,10,"5 А"]
[null,"ФИО",null,null,null,null,null,null,null,null,null,"Класс",null,null,null,null,null,null,null,null,null,null,null,null,null,null,null,null,null,null,null,null,11,"5 Б"]
[null,"Возраст",null,null,null,null,null,null,null,null,null,null,null,null,null,null,null,null,null,null,null,null,null,null,null,null,null,null,null,null,null,null,12,"5 В"]
[null,null,null,null,null,null,null,null,null,null,null,null,null,null,null,null,null,null,null,null,null,null,null,null,null,null,null,null,null,null,null,null,13]
["Данные вопросы касаются вашего отношения к различным направлениям деятельности. Нравится ли вам делать то, о чем говориться в опроснике? Если да, то в бланке ответов рядом с номером вопроса поставьте плюс, если не нравится – минус. ",null,null,null,null,null,null,null,null,null,null,null,null,null,null,null,null,null,null,null,null,null,null,null,null,null,null,null,null,null,null,"Мальчик",14]
[null,null,null,null,null,null,null,null,null,null,null,null,null,null,null,null,null,null,null,null,null,null,null,null,null,null,null,null,null,null,null,"Девочка",15]
[null,null,null,null,null,null,null,null,null,null,null,null,null,null,null,null,null,null,null,null,null,null,null,null,null,null,null,null,null,null,null,null,16]
[]
[null,null,null,null,null,null,null,null,null,null,null,null,null,null,null,null,null,null,null,null,null,null,null,null,null,null,"+"]
[1,"Узнавать об открытиях в области физики и математики.",null,null,null,null,null,null,null,null,null,null,null,null,null,null,null,null,null,null,null,null,null,null,null,null,"-"]
[2,"Смотреть передачи о жизни растений и животных."]
[3,"Выяснять устройство электроприборов."]
[4,"Читать научно-популярные технические журналы."]
[5,"Смотреть передачи о  жизни людей в разных странах."]
[6,"Бывать на выставках, концертах, спектаклях."]
[7,"Обсуждать и анализировать события в стране и за рубежом."]
[8,"Наблюдать за работой медсестры, врача."]
[9,"Создавать уют и порядок в доме, классе, школе."]
[10,"Читать книги и смотреть фильмы о войнах и сражениях. "]
[11,"Заниматься математическими расчетами и вычислениями."]
[12,"Узнавать об открытиях в области химии и биологии."]
[13,"Ремонтировать бытовые электроприборы."]
[14,"Посещать технические выставки, знакомиться с достижениями  науки  и техники."]
[15,"Ходить в походы, бывать в новых неизведанных местах."]
[16,"Читать отзывы и  статьи о книгах, фильмах, концертах."]
[17,"Участвовать в общественной  жизни школы, города."]
[18,"Объяснять одноклассникам учебный материал."]
[19,"Самостоятельно выполнять работу по хозяйству."]
[20,"Соблюдать режим, вести здоровый образ жизни."]
[21,"Проводить опыты по физике."]
[22,"Ухаживать за животными  растениями."]
[23,"Читать статьи об электронике и радиотехнике."]
[24,"Собирать и ремонтировать  часы, замки, велосипеды. "]
[25,"Коллекционировать камни, минералы."]
[26,"Вести дневник, сочинять стихи и рассказы."]
[27,"Читать биографии известных политиков, книги по истории."]
[28,"Играть с детьми, помогать делать уроки младшим."]
[29,"Закупать продукты для дома, вести учет расходов."]
[30,"Участвовать в военных играх, походах."]
[31,"Заниматься физикой и математикой сверх школьной программы."]
[32,"Замечать и объяснять природные явления."]
[33,"Собирать и ремонтировать компьютеры."]
[34,"Строить чертежи, схемы, графики, в том числе на компьютере."]
[35,"Участвовать в географических, геологических экспедициях."]
[36,"Рассказывать  друзьям о прочитанных книгах, увиденных фильмах и спектаклях."]
[37,"Следить за политической жизнью в стране и за рубежом"]
[38,"Ухаживать за маленькими детьми или близкими, если они заболели."]
[39,"Искать и находить способы зарабатывания денег."]
[40,"Заниматься физической культурой и спортом."]
[41,"Участвовать в физико-математических олимпиадах."]
[42,"Выполнять лабораторные опыты по химии и биологии."]
[43,"Разбираться в принципах работы электроприборов."]
[44,"Разбираться в принципах работы различных механизмов."]
[45,"“Читать”  географические и геологические карты."]
[46,"Участвовать в спектаклях, концертах."]
[47,"Изучать политику и экономику других стран."]
[48,"Изучать причины поведения людей, строение человеческого организма."]
[49,"Вкладывать заработанные деньги в домашний бюджет."]
[50,"Участвовать в спортивных соревнованиях."]

{"sheet":"ОП","index":1,"n_rows":12,"n_cols":18,"rows_kept":12,"cut":false,"hidden":true,"merged":[[8,13,8,16],[9,13,9,16],[10,13,10,16],[11,13,11,16],[1,0,1,4],[1,7,1,11],[2,13,2,16],[3,13,3,16],[4,13,4,16],[5,13,5,16],[6,13,6,16],[7,13,7,16]]}
[]
["Номера вопросов",null,null,null,null,"Сумма баллов",null,"Номера вопросов"]
[1,11,21,31,41,null,null,{"$f":"IF(Профиль!L10=\"+\",1,0)","v":0},{"$f":"IF(Профиль!L20=\"+\",1,0)","v":0},{"$f":"IF(Профиль!L30=\"+\",1,0)","v":0},{"$f":"IF(Профиль!L40=\"+\",1,0)","v":0},{"$f":"IF(Профиль!L50=\"+\",1,0)","v":0},{"$f":"SUM(H3:L3)","v":0},"Физика и математика",null,null,null,{"$f":"CONCATENATE(SUM(H3:L3),\" / 5\")","v":"0 / 5"}]
[2,12,22,32,42,null,null,{"$f":"IF(Профиль!L11=\"+\",1,0)","v":0},{"$f":"IF(Профиль!L21=\"+\",1,0)","v":0},{"$f":"IF(Профиль!L31=\"+\",1,0)","v":0},{"$f":"IF(Профиль!L41=\"+\",1,0)","v":0},{"$f":"IF(Профиль!L51=\"+\",1,0)","v":0},{"$f":"SUM(H4:L4)","v":0},"Химия и биология",null,null,null,"0 / 5"]
[3,13,23,33,43,null,null,{"$f":"IF(Профиль!L12=\"+\",1,0)","v":0},{"$f":"IF(Профиль!L22=\"+\",1,0)","v":0},{"$f":"IF(Профиль!L32=\"+\",1,0)","v":0},{"$f":"IF(Профиль!L42=\"+\",1,0)","v":0},{"$f":"IF(Профиль!L52=\"+\",1,0)","v":0},0,"Радиотехника и электроника",null,null,null,"0 / 5"]
[4,14,24,34,44,null,null,{"$f":"IF(Профиль!L13=\"+\",1,0)","v":0},{"$f":"IF(Профиль!L23=\"+\",1,0)","v":0},{"$f":"IF(Профиль!L33=\"+\",1,0)","v":0},{"$f":"IF(Профиль!L43=\"+\",1,0)","v":0},{"$f":"IF(Профиль!L53=\"+\",1,0)","v":0},0,"Механика и конструирование",null,null,null,"0 / 5"]
[5,15,25,35,45,null,null,{"$f":"IF(Профиль!L14=\"+\",1,0)","v":0},{"$f":"IF(Профиль!L24=\"+\",1,0)","v":0},{"$f":"IF(Профиль!L34=\"+\",1,0)","v":0},{"$f":"IF(Профиль!L44=\"+\",1,0)","v":0},{"$f":"IF(Профиль!L54=\"+\",1,0)","v":0},0,"География и геология",null,null,null,"0 / 5"]
[6,16,26,36,46,null,null,{"$f":"IF(Профиль!L15=\"+\",1,0)","v":0},{"$f":"IF(Профиль!L25=\"+\",1,0)","v":0},{"$f":"IF(Профиль!L35=\"+\",1,0)","v":0},{"$f":"IF(Профиль!L45=\"+\",1,0)","v":0},{"$f":"IF(Профиль!L55=\"+\",1,0)","v":0},0,"Литература и искусство",null,null,null,"0 / 5"]
[7,17,27,37,47,null,null,{"$f":"IF(Профиль!L16=\"+\",1,0)","v":0},{"$f":"IF(Профиль!L26=\"+\",1,0)","v":0},{"$f":"IF(Профиль!L36=\"+\",1,0)","v":0},{"$f":"IF(Профиль!L46=\"+\",1,0)","v":0},{"$f":"IF(Профиль!L56=\"+\",1,0)","v":0},0,"История и политика",null,null,null,"0 / 5"]
[8,18,28,38,48,null,null,{"$f":"IF(Профиль!L17=\"+\",1,0)","v":0},{"$f":"IF(Профиль!L27=\"+\",1,0)","v":0},{"$f":"IF(Профиль!L37=\"+\",1,0)","v":0},{"$f":"IF(Профиль!L47=\"+\",1,0)","v":0},{"$f":"IF(Профиль!L57=\"+\",1,0)","v":0},0,"Педагогика и медицина",null,null,null,"0 / 5"]
[9,19,29,39,49,null,null,{"$f":"IF(Профиль!L18=\"+\",1,0)","v":0},{"$f":"IF(Профиль!L28=\"+\",1,0)","v":0},{"$f":"IF(Профиль!L38=\"+\",1,0)","v":0},{"$f":"IF(Профиль!L48=\"+\",1,0)","v":0},{"$f":"IF(Профиль!L58=\"+\",1,0)","v":0},0,"Предпринимательство и домоводство",null,null,null,"0 / 5"]
[10,20,30,40,50,null,null,{"$f":"IF(Профиль!L19=\"+\",1,0)","v":0},{"$f":"IF(Профиль!L29=\"+\",1,0)","v":0},{"$f":"IF(Профиль!L39=\"+\",1,0)","v":0},{"$f":"IF(Профиль!L49=\"+\",1,0)","v":0},{"$f":"IF(Профиль!L59=\"+\",1,0)","v":0},0,"Спорт и военное дело",null,null,null,"0 / 5"]

{"sheet":"Тип мышления","index":2,"n_rows":46,"n_cols":33,"rows_kept":46,"cut":false,"hidden":false,"merged":[[42,1,42,13],[43,1,43,13],[44,1,44,13],[45,1,45,13],[33,1,33,13],[34,1,34,13],[35,1,35,13],[36,1,36,13],[37,1,37,13],[40,1,40,13],[41,1,41,13],[1,0,4,14],[6,1,6,13],[7,1,7,13],[8,1,8,13],[9,1,9,13],[10,1,10,13],[11,1,11,13],[12,1,12,13],[13,1,13,13],[24,1,24,13],[14,1,14,13],[15,1,15,13],[16,1,16,13],[17,1,17,13],[18,1,18,13],[19,1,19,13],[20,1,20,13],[21,1,21,13],[22,1,22,13],[23,1,23,13],[25,1,25,13],[26,1,26,13],[27,1,27,13],[38,1,38,13],[39,1,39,13],[28,1,28,13],[29,1,29,13],[30,1,30,13],[31,1,31,13],[32,1,32,13]]}
[null,null,null,null,null,null,null,null,null,null,null,null,null,null,null,null,null,null,null,null,null,null,null,null,null,null,null,null,null,null,null,null,13]
["Тип мышления – индивидуальный способ преобразования информации. Зная свой тип мышления, можно прогнозировать успешность в конкретных видах профессиональной деятельности.\nЕсли согласны с высказыванием, в бланке поставьте «+», если нет «–». ",null,null,null,null,null,null,null,null,null,null,null,null,null,null,null,null,null,null,null,null,null,null,null,null,null,null,null,null,null,null,"Мальчик",14]
[null,null,null,null,null,null,null,null,null,null,null,null,null,null,null,null,null,null,null,null,null,null,null,null,null,null,null,null,null,null,null,"Девочка",15]
[null,null,null,null,null,null,null,null,null,null,null,null,null,null,null,null,null,null,null,null,null,null,null,null,null,null,null,null,null,null,null,null,16]
[]
[]
[1,"Мне легче что-либо сделать самому, чем объяснить другому.",null,null,null,null,null,null,null,null,null,null,null,null,null,null,null,null,null,null,null,"+"]
[2,"Мне интересно составлять компьютерные программы.",null,null,null,null,null,null,null,null,null,null,null,null,null,null,null,null,null,null,null,"-"]
[3,"Я люблю читать книги."]
[4,"Мне нравится живопись, скульптура, архитектура."]
[5,"Даже в отлаженном деле я стараюсь что-то улучшить."]
[6,"Я лучше понимаю, если мне объясняют на предметах или рисунках."]
[7,"Я люблю играть в шахматы."]
[8,"Я легко излагаю свои мысли как в устной, так и в письменной форме."]
[9,"Когда я читаю книгу, я четко вижу ее героев и описываемые события."]
[10,"Я предпочитаю самостоятельно планировать свою работу."]
[11,"Мне нравится все делать своими руками."]
[12,"В детстве я создавал(а) свой шифр для переписки с друзьями."]
[13,"Я придаю большое значение сказанному слову."]
[14,"Знакомые мелодии вызывают у меня в голове определенные картины."]
[15,"Разнообразные увлечения делают жизнь человека богаче и ярче."]
[16,"При решении задачи мне легче идти методом проб и ошибок."]
[17,"Мне интересно разбираться в природе физических явлений."]
[18,"Мне интересна работа ведущего теле-радиопрограмм, журналиста."]
[19,"Мне легко представить предмет или животное, которых нет в природе."]
[20,"Мне больше нравится процесс деятельности, чем сам результат."]
[21,"Мне нравилось в детстве собирать конструктор из деталей, лего."]
[22,"Я предпочитаю точные науки (математику, физику)."]
[23,"Меня восхищает точность и глубина некоторых стихов."]
[24,"Знакомый запах вызывает в моей памяти прошлые события."]
[25,"Я не хотел(а) бы подчинять свою жизнь определенной системе."]
[26,"Когда я слышу музыку, мне хочется танцевать."]
[27,"Я понимаю красоту математических формул."]
[28,"Мне легко говорить перед любой аудиторией."]
[29,"Я люблю посещать выставки, спектакли, концерты."]
[30,"Я сомневаюсь даже в том, что для других очевидно."]
[31,"Я люблю заниматься рукоделием, что-то мастерить."]
[32,"Мне интересно было бы расшифровать древние тайнописи."]
[33,"Я легко усваиваю грамматические конструкции языка."]
[34,"Я согласен с Ф.М. Достоевским, что красота спасет мир."]
[35,"Не люблю ходить одним и тем же путем."]
[36,"Истинно только то, что можно потрогать руками."]
[37,"Я легко запоминаю формулы, символы, условные обозначения."]
[38,"Друзья любят слушать, когда я им что-то рассказываю."]
[39,"Я легко могу представить в образах содержание рассказа или фильма."]
[40,"Я не могу успокоиться, пока не доведу свою работу до совершенства."]

{"sheet":"ОТМ","index":3,"n_rows":15,"n_cols":49,"rows_kept":15,"cut":false,"hidden":true,"merged":[[1,1,1,8],[8,0,8,13],[14,10,14,13],[9,1,9,8],[9,10,9,13],[10,10,10,13],[11,10,11,13],[12,10,12,13],[13,10,13,13]]}
[]
["Шкала","Пункты, номер"]
["Предметно-действенное",1,6,11,16,21,26,31,36]
["Абстрактно-символическое",2,7,12,17,22,27,32,37]
["Словесно-логическое",3,8,13,18,23,28,33,38]
["Наглядно-образное",4,9,14,19,24,29,34,39]
["Креативность (творческое)",5,10,15,20,25,30,35,40]
[]
["Результаты"]
["Шкала","Ответы",null,null,null,null,null,null,null,"Итого","Уровень",null,null,null,null,null,null,null,null,null,null,null,null,null,null,null,null,null,null,null,null,null,null,null,null,null,null,null,null,null,null,null,null,null,null,0,0,0]
["Предметно-действенное",{"$f":"'Тип мышления'!O7","v":0},{"$f":"'Тип мышления'!$O12","v":0},{"$f":"'Тип мышления'!$O17","v":0},{"$f":"'Тип мышления'!$O22","v":0},{"$f":"'Тип мышления'!$O27","v":0},{"$f":"'Тип мышления'!$O32","v":0},{"$f":"'Тип мышления'!$O37","v":0},{"$f":"'Тип мышления'!$O42","v":0},{"$f":"COUNTIF(B11:I11,\"+\")","v":0},{"$f":"IF(AND(J11>=0,J11<=2),\"Низкий\",IF(AND(J11>=3,J11<=5),\"Средний\",IF(AND(J11>=6,J11<=8),\"Высокий\",)))","v":"Низкий"},null,null,null,null,null,null,null,null,null,null,null,null,null,null,null,null,null,null,null,null,null,null,null,null,null,null,null,null,null,null,null,null,null,null,0,0,0]
["Абстрактно-символическое",{"$f":"'Тип мышления'!O8","v":0},{"$f":"'Тип мышления'!$O13","v":0},{"$f":"'Тип мышления'!$O18","v":0},{"$f":"'Тип мышления'!$O23","v":0},{"$f":"'Тип мышления'!$O28","v":0},{"$f":"'Тип мышления'!$O33","v":0},{"$f":"'Тип мышления'!$O38","v":0},{"$f":"'Тип мышления'!$O43","v":0},{"$f":"COUNTIF(B12:I12,\"+\")","v":0},{"$f":"IF(AND(J12>=0,J12<=2),\"Низкий\",IF(AND(J12>=3,J12<=5),\"Средний\",IF(AND(J12>=6,J12<=8),\"Высокий\",)))","v":"Низкий"},null,null,null,null,null,null,null,null,null,null,null,null,null,null,null,null,null,null,null,null,null,null,null,null,null,null,null,null,null,null,null,null,null,null,0,0,0,0]
["Словесно-логическое",{"$f":"'Тип мышления'!O9","v":0},{"$f":"'Тип мышления'!$O14","v":0},{"$f":"'Тип мышления'!$O19","v":0},{"$f":"'Тип мышления'!$O24","v":0},{"$f":"'Тип мышления'!$O29","v":0},{"$f":"'Тип мышления'!$O34","v":0},{"$f":"'Тип мышления'!$O39","v":0},{"$f":"'Тип мышления'!$O44","v":0},{"$f":"COUNTIF(B13:I13,\"+\")","v":0},{"$f":"IF(AND(J13>=0,J13<=2),\"Низкий\",IF(AND(J13>=3,J13<=5),\"Средний\",IF(AND(J13>=6,J13<=8),\"Высокий\",)))","v":"Низкий"}]
["Наглядно-образное",{"$f":"'Тип мышления'!O10","v":0},{"$f":"'Тип мышления'!$O15","v":0},{"$f":"'Тип мышления'!$O20","v":0},{"$f":"'Тип мышления'!$O25","v":0},{"$f":"'Тип мышления'!$O30","v":0},{"$f":"'Тип мышления'!$O35","v":0},{"$f":"'Тип мышления'!$O40","v":0},{"$f":"'Тип мышления'!$O45","v":0},{"$f":"COUNTIF(B14:I14,\"+\")","v":0},{"$f":"IF(AND(J14>=0,J14<=2),\"Низкий\",IF(AND(J14>=3,J14<=5),\"Средний\",IF(AND(J14>=6,J14<=8),\"Высокий\",)))","v":"Низкий"}]
["Креативность (творческое)",{"$f":"'Тип мышления'!O11","v":0},{"$f":"'Тип мышления'!$O16","v":0},{"$f":"'Тип мышления'!$O21","v":0},{"$f":"'Тип мышления'!$O26","v":0},{"$f":"'Тип мышления'!$O31","v":0},{"$f":"'Тип мышления'!$O36","v":0},{"$f":"'Тип мышления'!$O41","v":0},{"$f":"'Тип мышления'!$O46","v":0},{"$f":"COUNTIF(B15:I15,\"+\")","v":0},{"$f":"IF(AND(J15>=0,J15<=2),\"Низкий\",IF(AND(J15>=3,J15<=5),\"Средний\",IF(AND(J15>=6,J15<=8),\"Высокий\",)))","v":"Низкий"}]

{"sheet":"Эрудит (А)","index":4,"n_rows":36,"n_cols":41,"rows_kept":36,"cut":false,"hidden":false,"merged":[[25,1,25,13],[25,14,25,18],[26,1,26,13],[26,14,26,18],[27,1,27,13],[27,14,27,18],[22,1,22,13],[22,14,22,18],[23,1,23,13],[23,14,23,18],[24,1,24,13],[24,14,24,18],[19,1,19,13],[19,14,19,18],[20,1,20,13],[20,14,20,18],[21,1,21,13],[21,14,21,18],[16,1,16,13],[16,14,16,18],[17,1,17,13],[17,14,17,18],[18,1,18,13],[18,14,18,18],[13,1,13,13],[13,14,13,18],[14,1,14,13],[14,14,14,18],[15,1,15,13],[15,14,15,18],[10,1,10,13],[10,14,10,18],[11,1,11,13],[11,14,11,18],[12,1,12,13],[12,14,12,18],[0,0,6,18],[7,0,7,18],[8,1,8,13],[8,14,8,18],[9,1,9,13],[9,14,9,18]]}
[" Даны три слова. Первое и второе слово связаны по смыслу. Из четырех слов выберите то, которое связано по смыслу с третьим так, как первое со вторым. В бланке рядом с номером задания запишите его букву. Пример: летчик – самолет = машинист –? Варианты: а) пассажир; б) поезд; в) вагон; г) вокзал. Летчик управляет самолетом, машинист – поездом. Правильный ответ – б."]
[]
[]
[]
[]
[]
[null,null,null,null,null,null,null,null,null,null,null,null,null,null,null,null,null,null,null,null,null,null,null,null,null,null,null,null,null,null,null,1,null,null,null,7,null,null,13,null,19]
[null,null,null,null,null,null,null,null,null,null,null,null,null,null,null,null,null,null,null,null,null,null,null,null,null,null,null,null,null,null,null,"а) рабовладельческий строй; ",null,null,null,"а) заголовок; ",null,null,"а) шишка; ",null,"а) инерция; "]
[1,"Рабовладельцы – капиталисты = рабы – …",null,null,null,null,null,null,null,null,null,null,null,null,null,null,null,null,null,null,null,null,null,null,{"$f":"IF(O9=AF10,1,0)","v":0},null,null,null,null,null,null,"б) буржуазия; ",null,null,null,"б) введение; ",null,null,"б) семя; ",null,"б) покой; "]
[2,"Богатство – бедность = крепостная зависимость – …",null,null,null,null,null,null,null,null,null,null,null,null,null,null,null,null,null,null,null,null,null,null,{"$f":"IF(O10=AF14,1,0)","v":0},null,null,null,null,null,null,"в) наёмные рабочие;",null,null,null,"в) кульминация; ",null,null,"в) растение; ",null,"в) скорость; "]
[3,"Первобытный строй – рабовладельческий строй = рабовладельческий строй – …",null,null,null,null,null,null,null,null,null,null,null,null,null,null,null,null,null,null,null,null,null,null,{"$f":"IF(O11=AF21,1,0)","v":0},null,null,null,null,null,null,"г) пленные.",null,null,null,"г) эпилог.",null,null,"г) ель.",null,"г) взаимодействие."]
[4,"Роза – цветок = врач – …",null,null,null,null,null,null,null,null,null,null,null,null,null,null,null,null,null,null,null,null,null,null,{"$f":"IF(O12=AF26,1,0)","v":0},null,null,null,null,null,null,"2",null,null,null,"8",null,null,"14",null,"20"]
[5,"Война – смерть = частная собственность – …",null,null,null,null,null,null,null,null,null,null,null,null,null,null,null,null,null,null,null,null,null,null,{"$f":"IF(O13=AF30,1,0)","v":0},null,null,null,null,null,null,"а) крепостные крестьяне;",null,null,null,"а) поэма; ",null,null,"а) деление; ",null,"а) разность; "]
[6,"Стихотворение – поэзия = рассказ – …",null,null,null,null,null,null,null,null,null,null,null,null,null,null,null,null,null,null,null,null,null,null,{"$f":"IF(O14=AF33,1,0)","v":0},null,null,null,null,null,null,"б) личная свобода;",null,null,null,"б) рифма; ",null,null,"б) хромосома; ",null,"б) делитель; "]
[7,"Старт – финиш = пролог – …",null,null,null,null,null,null,null,null,null,null,null,null,null,null,null,null,null,null,null,null,null,null,{"$f":"IF(O15=AJ11,1,0)","v":0},null,null,null,null,null,null,"в) неравенство;",null,null,null,"в) строфа; ",null,null,"в) ядро; ",null,"в) произведение; "]
[8,"Роман – глава = стихотворение – …",null,null,null,null,null,null,null,null,null,null,null,null,null,null,null,null,null,null,null,null,null,null,{"$f":"IF(O16=AJ15,1,0)","v":0},null,null,null,null,null,null,"г) частная собственность.",null,null,null,"г) ритм.",null,null,"г) фермент.",null,"г) умножение."]
[9,"Числительное – количество = глагол – …",null,null,null,null,null,null,null,null,null,null,null,null,null,null,null,null,null,null,null,null,null,null,{"$f":"IF(O17=AJ19,1,0)","v":0},null,null,null,null,null,null,"3",null,null,null,"9",null,null,"15"]
[10,"Глагол – спрягать = существительное – …",null,null,null,null,null,null,null,null,null,null,null,null,null,null,null,null,null,null,null,null,null,null,{"$f":"IF(O18=AJ26,1,0)","v":0},null,null,null,null,null,null,"а) социалистический строй; ",null,null,null,"а) спряжение; ",null,null,"а) ясная погода; "]
[11,"Колумб – путешественник = землетрясение – …",null,null,null,null,null,null,null,null,null,null,null,null,null,null,null,null,null,null,null,null,null,null,{"$f":"IF(O19=AJ28,1,0)","v":0},null,null,null,null,null,null,"б) капиталистический строй; ",null,null,null,"б) действие; ",null,null,"б) циклон; "]
[12,"Север – юг = осадки – …",null,null,null,null,null,null,null,null,null,null,null,null,null,null,null,null,null,null,null,null,null,null,{"$f":"IF(O20=AJ36,1,0)","v":0},null,null,null,null,null,null,"в) демократическое правление; ",null,null,null,"в) причастие; ",null,null,"в) гроза; "]
[13,"Папоротник – спора = сосна – …",null,null,null,null,null,null,null,null,null,null,null,null,null,null,null,null,null,null,null,null,null,null,{"$f":"IF(O21=AM9,1,0)","v":0},null,null,null,null,null,null,"г) феодальный строй.",null,null,null,"г) часть речи.",null,null,"г) влажность."]
[14,"Растение – стебель = клетка – …",null,null,null,null,null,null,null,null,null,null,null,null,null,null,null,null,null,null,null,null,null,null,{"$f":"IF(O22=AM15,1,0)","v":0},null,null,null,null,null,null,"4",null,null,null,"10",null,null,"16"]
[15,"Понижение атмосферного давления – осадки = антициклон – …",null,null,null,null,null,null,null,null,null,null,null,null,null,null,null,null,null,null,null,null,null,null,{"$f":"IF(O23=AM18,1,0)","v":0},null,null,null,null,null,null,"а) занятие; ",null,null,null,"а) изменять; ",null,null,"а) жидкость; "]
[16,"Фигура - треугольник = состояние вещества – …",null,null,null,null,null,null,null,null,null,null,null,null,null,null,null,null,null,null,null,null,null,null,{"$f":"IF(O24=AM23,1,0)","v":0},null,null,null,null,null,null,"б) должность; ",null,null,null,"б) образовывать; ",null,null,"б) движение; "]
[17,"Прямоугольник – плоскость = куб – …",null,null,null,null,null,null,null,null,null,null,null,null,null,null,null,null,null,null,null,null,null,null,{"$f":"IF(O25=AM31,1,0)","v":0},null,null,null,null,null,null,"в) специальность; ",null,null,null,"в) употреблять; ",null,null,"в) температура; "]
[18,"Диаметр – радиус = окружность – …",null,null,null,null,null,null,null,null,null,null,null,null,null,null,null,null,null,null,null,null,null,null,{"$f":"IF(O26=AM33,1,0)","v":0},null,null,null,null,null,null,"г) профессия.",null,null,null,"г) склонять.",null,null,"г) вода."]
[19,"Холодно – горячо = движение – …",null,null,null,null,null,null,null,null,null,null,null,null,null,null,null,null,null,null,null,null,null,null,{"$f":"IF(O27=AO9,1,0)","v":0},null,null,null,null,null,null,"5",null,null,null,"11",null,null,"17"]
[20,"Слагаемые – сумма = множители – …",null,null,null,null,null,null,null,null,null,null,null,null,null,null,null,null,null,null,null,null,null,null,{"$f":"IF(O28=AO15,1,0)","v":0},null,null,null,null,null,null,"а) феодализм; ",null,null,null,"а) природное явление; ",null,null,"а) сторона; "]
[null,null,null,null,null,null,null,null,null,null,null,null,null,null,null,null,null,null,null,null,null,null,null,null,null,null,null,null,null,null,null,"б) капитализм; ",null,null,null,"б) образование гор; ",null,null,"б) ребро; "]
[null,null,null,null,null,null,null,null,null,null,null,null,null,null,null,null,null,null,null,null,null,null,null,null,null,null,null,null,null,null,null,"в) неравенство; ",null,null,null,"в) извержение; ",null,null,"в) высота; "]
[null,null,null,null,null,null,null,null,null,null,null,null,null,null,null,null,null,null,null,null,null,null,null,null,null,null,null,null,null,null,null,"г) рабы.",null,null,null,"г) жертвы.",null,null,"г) объем."]
[null,null,null,null,null,null,null,null,null,null,null,null,null,null,null,null,null,null,null,null,null,null,null,null,null,null,null,null,null,null,null,"6",null,null,null,"12",null,null,"18"]
[null,null,null,null,null,null,null,null,null,null,null,null,null,null,null,null,null,null,null,null,null,null,null,null,null,null,null,null,null,null,null,"а) проза; ",null,null,null,"а) пустыня; ",null,null,"а) дуга; "]
[null,null,null,null,null,null,null,null,null,null,null,null,null,null,null,null,null,null,null,null,null,null,null,null,null,null,null,null,null,null,null,"б) писатель; ",null,null,null,"б) полюс; ",null,null,"б) сегмент; "]
[null,null,null,null,null,null,null,null,null,null,null,null,null,null,null,null,null,null,null,null,null,null,null,null,null,null,null,null,null,null,null,"в) повесть; ",null,null,null,"в) дождь; ",null,null,"в) отрезок; "]
[null,null,null,null,null,null,null,null,null,null,null,null,null,null,null,null,null,null,null,null,null,null,null,null,null,null,null,null,null,null,null,"г) предложение.",null,null,null,"г) засуха.",null,null,"г) круг."]

{"sheet":"Эрудит (К)","index":5,"n_rows":36,"n_cols":41,"rows_kept":36,"cut":false,"hidden":false,"merged":[[25,1,25,13],[25,14,25,18],[26,1,26,13],[26,14,26,18],[27,1,27,13],[27,14,27,18],[22,1,22,13],[22,14,22,18],[23,1,23,13],[23,14,23,18],[24,1,24,13],[24,14,24,18],[19,1,19,13],[19,14,19,18],[20,1,20,13],[20,14,20,18],[21,1,21,13],[21,14,21,18],[16,1,16,13],[16,14,16,18],[17,1,17,13],[17,14,17,18],[18,1,18,13],[18,14,18,18],[13,1,13,13],[13,14,13,18],[14,1,14,13],[14,14,14,18],[15,1,15,13],[15,14,15,18],[10,1,10,13],[10,14,10,18],[11,1,11,13],[11,14,11,18],[12,1,12,13],[12,14,12,18],[0,0,6,18],[8,1,8,13],[8,14,8,18],[9,1,9,13],[9,14,9,18]]}
["Даны четыре слова, три из которых объединены общим признаком. Найдите слово, которое не имеет этого признака, и выберите его из списка. Пример: а) корова; б) лошадь; в) собака; г) волк. Три слова обозначают домашних животных, а четвертое – дикого. Значит, правильный ответ – г) волк."]
[]
[]
[]
[]
[]
[null,null,null,null,null,null,null,null,null,null,null,null,null,null,null,null,null,null,null,null,null,null,null,null,null,null,null,null,null,null,null,21,null,null,null,27,null,null,33,null,39]
[null,null,null,null,null,null,null,null,null,null,null,null,null,null,null,null,null,null,null,null,null,null,null,null,null,null,null,null,null,null,null,"а) рабовладелец; ",null,null,null,"а) пословица; ",null,null,"а) Линней; ",null,"а) скорость; "]
[21,"а) рабовладелец; б) раб; в) крестьянин; г) рабочий.",null,null,null,null,null,null,null,null,null,null,null,null,null,null,null,null,null,null,null,null,null,null,{"$f":"IF(O9=AF8,1,0)","v":0},null,null,null,null,null,null,"б) раб; ",null,null,null,"б) стихотворение; ",null,null,"б) Павлов; ",null,"б) колебание; "]
[22,"а) социология; б) психология; в) педагогика; г) техника.",null,null,null,null,null,null,null,null,null,null,null,null,null,null,null,null,null,null,null,null,null,null,{"$f":"IF(O10=AF16,1,0)","v":0},null,null,null,null,null,null,"в) крестьянин; ",null,null,null,"в) поэма; ",null,null,"в) Микоян; ",null,"в) вес; "]
[23,"а) Кутузов; б) Суворов; в) Ушаков; г) Пирогов.",null,null,null,null,null,null,null,null,null,null,null,null,null,null,null,null,null,null,null,null,null,null,{"$f":"IF(O11=AF21,1,0)","v":0},null,null,null,null,null,null,"г) рабочий.",null,null,null,"г) рассказ.",null,null,"г) Дарвин.",null,"г) плотность."]
[24,"а) император; б) дворянин; в) царь; г) вождь.",null,null,null,null,null,null,null,null,null,null,null,null,null,null,null,null,null,null,null,null,null,null,{"$f":"IF(O12=AF24,1,0)","v":0},null,null,null,null,null,null,22,null,null,null,28,null,null,34,null,40]
[25,"а) ООН; б) НАТО; в) ОБСЕ; г) АОЗТ.",null,null,null,null,null,null,null,null,null,null,null,null,null,null,null,null,null,null,null,null,null,null,{"$f":"IF(O13=AF31,1,0)","v":0},null,null,null,null,null,null,"а) социология; ",null,null,null,"а) Ахматова; ",null,null,"а) аорта; ",null,"а) круг; "]
[26,"а) предлог; б) корень; в) суффикс; г) окончание.",null,null,null,null,null,null,null,null,null,null,null,null,null,null,null,null,null,null,null,null,null,null,{"$f":"IF(O14=AF33,1,0)","v":0},null,null,null,null,null,null,"б) психология; ",null,null,null,"б) Блок; ",null,null,"б) вена; ",null,"б) ромб; "]
[27,"а) пословица; б) стихотворение; в) поэма; г) рассказ.",null,null,null,null,null,null,null,null,null,null,null,null,null,null,null,null,null,null,null,null,null,null,{"$f":"IF(O15=AJ8,1,0)","v":0},null,null,null,null,null,null,"в) педагогика; ",null,null,null,"в) Васнецов; ",null,null,"в) сердце; ",null,"в) прямоугольник; "]
[28,"а) Ахматова; б) Блок; в) Васнецов; г) Гумилев.",null,null,null,null,null,null,null,null,null,null,null,null,null,null,null,null,null,null,null,null,null,null,{"$f":"IF(O16=AJ15,1,0)","v":0},null,null,null,null,null,null,"г) техника.",null,null,null,"г) Гумилев.",null,null,"г) артерия.",null,"г) треугольник."]
[29,"а) пролог; б) сюжет; в) развязка; г) эпилог.",null,null,null,null,null,null,null,null,null,null,null,null,null,null,null,null,null,null,null,null,null,null,{"$f":"IF(O17=AJ19,1,0)","v":0},null,null,null,null,null,null,23,null,null,null,29,null,null,35]
[30,"а) описание; б) сравнение; в) характеристика; г) сказание.",null,null,null,null,null,null,null,null,null,null,null,null,null,null,null,null,null,null,null,null,null,null,{"$f":"IF(O18=AJ26,1,0)","v":0},null,null,null,null,null,null,"а) Кутузов; ",null,null,null,"а) пролог; ",null,null,"а) углекислый газ; "]
[31,"а) барометр; б) азимут; в) термометр; г) компас.",null,null,null,null,null,null,null,null,null,null,null,null,null,null,null,null,null,null,null,null,null,null,{"$f":"IF(O19=AJ34,1,0)","v":0},null,null,null,null,null,null,"б) Суворов; ",null,null,null,"б) сюжет; ",null,null,"б) свет; "]
[32,"а) цитоплазма; б) питание; в) рост; г) раздражимость.",null,null,null,null,null,null,null,null,null,null,null,null,null,null,null,null,null,null,null,null,null,null,{"$f":"IF(O20=AJ33,1,0)","v":0},null,null,null,null,null,null,"в) Ушаков; ",null,null,null,"в) развязка; ",null,null,"в) вода; "]
[33,"а) Линней; б) Павлов; в) Микоян; г) Дарвин.",null,null,null,null,null,null,null,null,null,null,null,null,null,null,null,null,null,null,null,null,null,null,{"$f":"IF(O21=AM10,1,0)","v":0},null,null,null,null,null,null,"г) Пирогов.",null,null,null,"г) эпилог.",null,null,"г) крахмал."]
[34,"а) аорта; б) вена; в) сердце; г) артерия.",null,null,null,null,null,null,null,null,null,null,null,null,null,null,null,null,null,null,null,null,null,null,{"$f":"IF(O22=AM15,1,0)","v":0},null,null,null,null,null,null,24,null,null,null,30,null,null,36]
[35,"а) углекислый газ; б) свет; в) вода; г) крахмал.",null,null,null,null,null,null,null,null,null,null,null,null,null,null,null,null,null,null,null,null,null,null,{"$f":"IF(O23=AM21,1,0)","v":0},null,null,null,null,null,null,"а) император; ",null,null,null,"а) описание; ",null,null,"а) парабола; "]
[36,"а) парабола; б) гипербола; в) ломаная; г) прямая.",null,null,null,null,null,null,null,null,null,null,null,null,null,null,null,null,null,null,null,null,null,null,{"$f":"IF(O24=AM25,1,0)","v":0},null,null,null,null,null,null,"б) дворянин; ",null,null,null,"б) сравнение; ",null,null,"б) гипербола; "]
[37,"а) Сахаров; б) Алферов; в) Ландау; г) Пастернак.",null,null,null,null,null,null,null,null,null,null,null,null,null,null,null,null,null,null,null,null,null,null,{"$f":"IF(O25=AM31,1,0)","v":0},null,null,null,null,null,null,"в) царь; ",null,null,null,"в) характеристика; ",null,null,"в) ломаная; "]
[38,"а) длина; б) метр; в) масса; г) объём.",null,null,null,null,null,null,null,null,null,null,null,null,null,null,null,null,null,null,null,null,null,null,{"$f":"IF(O26=AM34,1,0)","v":0},null,null,null,null,null,null,"г) вождь.",null,null,null,"г) сказание.",null,null,"г) прямая."]
[39,"а) скорость; б) колебание; в) вес; г) плотность.",null,null,null,null,null,null,null,null,null,null,null,null,null,null,null,null,null,null,null,null,null,null,{"$f":"IF(O27=AO9,1,0)","v":0},null,null,null,null,null,null,25,null,null,null,31,null,null,37]
[40,"а) круг; б) ромб; в) прямоугольник; г) треугольник.",null,null,null,null,null,null,null,null,null,null,null,null,null,null,null,null,null,null,null,null,null,null,{"$f":"IF(O28=AO13,1,0)","v":0},null,null,null,null,null,null,"а) ООН; ",null,null,null,"а) барометр; ",null,null,"а) Сахаров; "]
[null,null,null,null,null,null,null,null,null,null,null,null,null,null,null,null,null,null,null,null,null,null,null,null,null,null,null,null,null,null,null,"б) НАТО; ",null,null,null,"б) азимут; ",null,null,"б) Алферов; "]
[null,null,null,null,null,null,null,null,null,null,null,null,null,null,null,null,null,null,null,null,null,null,null,null,null,null,null,null,null,null,null,"в) ОБСЕ; ",null,null,null,"в) термометр; ",null,null,"в) Ландау; "]
[null,null,null,null,null,null,null,null,null,null,null,null,null,null,null,null,null,null,null,null,null,null,null,null,null,null,null,null,null,null,null,"г) АОЗТ.",null,null,null,"г) компас.",null,null,"г) Пастернак."]
[null,null,null,null,null,null,null,null,null,null,null,null,null,null,null,null,null,null,null,null,null,null,null,null,null,null,null,null,null,null,null,26,null,null,null,32,null,null,38]
[null,null,null,null,null,null,null,null,null,null,null,null,null,null,null,null,null,null,null,null,null,null,null,null,null,null,null,null,null,null,null,"а) предлог; ",null,null,null,"а) цитоплазма; ",null,null,"а) длина; "]
[null,null,null,null,null,null,null,null,null,null,null,null,null,null,null,null,null,null,null,null,null,null,null,null,null,null,null,null,null,null,null,"б) корень; ",null,null,null,"б) питание; ",null,null,"б) метр; "]
[null,null,null,null,null,null,null,null,null,null,null,null,null,null,null,null,null,null,null,null,null,null,null,null,null,null,null,null,null,null,null,"в) суффикс; ",null,null,null,"в) рост; ",null,null,"в) масса; "]
[null,null,null,null,null,null,null,null,null,null,null,null,null,null,null,null,null,null,null,null,null,null,null,null,null,null,null,null,null,null,null,"г) окончание.",null,null,null,"г) раздражимость.",null,null,"г) объём."]

{"sheet":"Эрудит (О)","index":6,"n_rows":36,"n_cols":41,"rows_kept":36,"cut":false,"hidden":false,"merged":[[0,0,6,18],[8,1,8,13],[8,14,8,18],[9,1,9,13],[9,14,9,18],[10,1,10,13],[10,14,10,18],[11,1,11,13],[11,14,11,18],[12,1,12,13],[12,14,12,18],[13,1,13,13],[13,14,13,18],[14,1,14,13],[14,14,14,18],[15,1,15,13],[15,14,15,18],[16,1,16,13],[16,14,16,18],[17,1,17,13],[17,14,17,18],[18,1,18,13],[18,14,18,18],[19,1,19,13],[19,14,19,18],[20,1,20,13],[20,14,20,18],[21,1,21,13],[21,14,21,18],[22,1,22,13],[22,14,22,18],[23,1,23,13],[23,14,23,18],[24,1,24,13],[24,14,24,18],[25,1,25,13],[25,14,25,18],[26,1,26,13],[26,14,26,18],[27,1,27,13],[27,14,27,18]]}
["Даны пары слов. Выберите из четырех вариантов тот, который выражает самые существенные для обоих слов признаки. Пример: сосна – ель. Варианты ответов: а) растения, б) природа, в) деревья, г) хвойные деревья. Правильный ответ – г, потому что он точнее всего отражает существенные свойства этих понятий."]
[]
[]
[]
[]
[]
[null,null,null,null,null,null,null,null,null,null,null,null,null,null,null,null,null,null,null,null,null,null,null,null,null,null,null,null,null,null,null,41,null,null,null,47,null,null,53,null,59]
[null,null,null,null,null,null,null,null,null,null,null,null,null,null,null,null,null,null,null,null,null,null,null,null,null,null,null,null,null,null,null,"а) устройство общества; ",null,null,null,"а) литературный прием; ",null,null,"а) природные явления; ",null,"а) электричество; "]
[41,"Феодализм – капитализм:",null,null,null,null,null,null,null,null,null,null,null,null,null,null,null,null,null,null,null,null,null,null,{"$f":"IF(O9=AF11,1,0)","v":0},null,null,null,null,null,null,"б) формы правления; ",null,null,null,"б) элементы литературного произведения; ",null,null,"б) дождь; ",null,"б) физические термины; "]
[42,"Радио – телевидение:",null,null,null,null,null,null,null,null,null,null,null,null,null,null,null,null,null,null,null,null,null,null,{"$f":"IF(O10=AF14,1,0)","v":0},null,null,null,null,null,null,"в) неравенство; ",null,null,null,"в) художественные средства; ",null,null,"в) погода; ",null,"в) единицы измерения электрического тока; "]
[43,"Наука – искусство:",null,null,null,null,null,null,null,null,null,null,null,null,null,null,null,null,null,null,null,null,null,null,{"$f":"IF(O11=AF21,1,0)","v":0},null,null,null,null,null,null,"г) общественный строй.",null,null,null,"г) способы изложения.",null,null,"г) атмосферные явления.",null,"г) ученые-физики."]
[44,"Школа – институт:",null,null,null,null,null,null,null,null,null,null,null,null,null,null,null,null,null,null,null,null,null,null,{"$f":"IF(O12=AF25,1,0)","v":0},null,null,null,null,null,null,42,null,null,null,48,null,null,54,null,60]
[45,"Монархия – демократия:",null,null,null,null,null,null,null,null,null,null,null,null,null,null,null,null,null,null,null,null,null,null,{"$f":"IF(O13=AF28,1,0)","v":0},null,null,null,null,null,null,"а) способы передачи информации; ",null,null,null,"а) главные члены предложения; ",null,null,"а) биологические вещества; ",null,"а) квадратичные функции; "]
[46,"Сказка – былина:",null,null,null,null,null,null,null,null,null,null,null,null,null,null,null,null,null,null,null,null,null,null,{"$f":"IF(O14=AF35,1,0)","v":0},null,null,null,null,null,null,"б) средства массовой информации; ",null,null,null,"б) части речи; ",null,null,"б) микроэлементы; ",null,"б) тригонометрические функции; "]
[47,"Пролог – кульминация:",null,null,null,null,null,null,null,null,null,null,null,null,null,null,null,null,null,null,null,null,null,null,{"$f":"IF(O15=AJ9,1,0)","v":0},null,null,null,null,null,null,"в) достижения науки; ",null,null,null,"в) второстепенные члены предложения; ",null,null,"в) органические вещества; ",null,"в) четные функции; "]
[48,"Глагол – прилагательное:",null,null,null,null,null,null,null,null,null,null,null,null,null,null,null,null,null,null,null,null,null,null,{"$f":"IF(O16=AJ14,1,0)","v":0},null,null,null,null,null,null,"г) формы воздействия на людей.",null,null,null,"г) лингвистические термины.",null,null,"г) химический состав тела.",null,"г) нечетные функции."]
[49,"Классицизм – романтизм:",null,null,null,null,null,null,null,null,null,null,null,null,null,null,null,null,null,null,null,null,null,null,{"$f":"IF(O17=AJ21,1,0)","v":0},null,null,null,null,null,null,43,null,null,null,49,null,null,55]
[50,"Определение – обстоятельство:",null,null,null,null,null,null,null,null,null,null,null,null,null,null,null,null,null,null,null,null,null,null,{"$f":"IF(O18=AJ23,1,0)","v":0},null,null,null,null,null,null,"а) виды творчества; ",null,null,null,"а) стиль; ",null,null,"а) гидроэлектростанции; "]
[51,"Азия – Африка:",null,null,null,null,null,null,null,null,null,null,null,null,null,null,null,null,null,null,null,null,null,null,{"$f":"IF(O19=AJ31,1,0)","v":0},null,null,null,null,null,null,"б) интеллект; ",null,null,null,"б) жанры; ",null,null,"б) водные сооружения; "]
[52,"Сердце – артерия:",null,null,null,null,null,null,null,null,null,null,null,null,null,null,null,null,null,null,null,null,null,null,{"$f":"IF(O20=AJ33,1,0)","v":0},null,null,null,null,null,null,"в) культура; ",null,null,null,"в) художественный стиль; ",null,null,"в) водоемы; "]
[53,"Облачность – осадки:",null,null,null,null,null,null,null,null,null,null,null,null,null,null,null,null,null,null,null,null,null,null,{"$f":"IF(O21=AM11,1,0)","v":0},null,null,null,null,null,null,"г) области человеческой деятельности.",null,null,null,"г) направления в искусстве.",null,null,"г) водные преграды."]
[54,"Жиры – белки:",null,null,null,null,null,null,null,null,null,null,null,null,null,null,null,null,null,null,null,null,null,null,{"$f":"IF(O22=AM15,1,0)","v":0},null,null,null,null,null,null,44,null,null,null,50,null,null,56]
[55,"Канал – плотина:",null,null,null,null,null,null,null,null,null,null,null,null,null,null,null,null,null,null,null,null,null,null,{"$f":"IF(O23=AM19,1,0)","v":0},null,null,null,null,null,null,"а) образование; ",null,null,null,"а) члены предложения; ",null,null,"а) математические термины; "]
[56,"Сумма – произведение:",null,null,null,null,null,null,null,null,null,null,null,null,null,null,null,null,null,null,null,null,null,null,{"$f":"IF(O24=AM25,1,0)","v":0},null,null,null,null,null,null,"б) здания; ",null,null,null,"б) части речи; ",null,null,"б) вычисления; "]
[57,"Газ – жидкость:",null,null,null,null,null,null,null,null,null,null,null,null,null,null,null,null,null,null,null,null,null,null,{"$f":"IF(O25=AM31,1,0)","v":0},null,null,null,null,null,null,"в) учебные заведения; ",null,null,null,"в) виды предложений; ",null,null,"в) результаты математических действий; "]
[58,"Дифракция – интерференция:",null,null,null,null,null,null,null,null,null,null,null,null,null,null,null,null,null,null,null,null,null,null,{"$f":"IF(O26=AM33,1,0)","v":0},null,null,null,null,null,null,"г) способы получения знаний.",null,null,null,"г) уточняющие слова.",null,null,"г) результаты вычислений."]
[59,"Ампер – вольт:",null,null,null,null,null,null,null,null,null,null,null,null,null,null,null,null,null,null,null,null,null,null,{"$f":"IF(O27=AO10,1,0)","v":0},null,null,null,null,null,null,45,null,null,null,51,null,null,57]
[60,"Синус – косинус:",null,null,null,null,null,null,null,null,null,null,null,null,null,null,null,null,null,null,null,null,null,null,{"$f":"IF(O28=AO14,1,0)","v":0},null,null,null,null,null,null,"а) государственный строй; ",null,null,null,"а) страны; ",null,null,"а) молекулы; "]
[null,null,null,null,null,null,null,null,null,null,null,null,null,null,null,null,null,null,null,null,null,null,null,null,null,null,null,null,null,null,null,"б) формы правления; ",null,null,null,"б) континенты; ",null,null,"б) состояние; "]
[null,null,null,null,null,null,null,null,null,null,null,null,null,null,null,null,null,null,null,null,null,null,null,null,null,null,null,null,null,null,null,"в) правительство; ",null,null,null,"в) материки; ",null,null,"в) химическое вещество; "]
[null,null,null,null,null,null,null,null,null,null,null,null,null,null,null,null,null,null,null,null,null,null,null,null,null,null,null,null,null,null,null,"г) устройство общества.",null,null,null,"г) части света.",null,null,"г) агрегатное состояние вещества."]
[null,null,null,null,null,null,null,null,null,null,null,null,null,null,null,null,null,null,null,null,null,null,null,null,null,null,null,null,null,null,null,46,null,null,null,52,null,null,58]
[null,null,null,null,null,null,null,null,null,null,null,null,null,null,null,null,null,null,null,null,null,null,null,null,null,null,null,null,null,null,null,"а) литературный жанр; ",null,null,null,"а) органы кровообращения; ",null,null,"а) волновые явления; "]
[null,null,null,null,null,null,null,null,null,null,null,null,null,null,null,null,null,null,null,null,null,null,null,null,null,null,null,null,null,null,null,"б) выдумка; ",null,null,null,"б) анатомия; ",null,null,"б) характеристики световой волны; "]
[null,null,null,null,null,null,null,null,null,null,null,null,null,null,null,null,null,null,null,null,null,null,null,null,null,null,null,null,null,null,null,"в) устное народное творчество; ",null,null,null,"в) система кровообращения; ",null,null,"в) природные явления; "]
[null,null,null,null,null,null,null,null,null,null,null,null,null,null,null,null,null,null,null,null,null,null,null,null,null,null,null,null,null,null,null,"г) литературное произведение.",null,null,null,"г) органы тела.",null,null,"г) физические термины."]

{"sheet":"Эрудит (З)","index":7,"n_rows":28,"n_cols":27,"rows_kept":28,"cut":false,"hidden":false,"merged":[[0,0,6,18],[8,1,8,13],[8,14,8,18],[9,1,9,13],[9,14,9,18],[10,1,10,13],[10,14,10,18],[11,1,11,13],[11,14,11,18],[12,1,12,13],[12,14,12,18],[13,1,13,13],[13,14,13,18],[14,1,14,13],[14,14,14,18],[15,1,15,13],[15,14,15,18],[16,1,16,13],[16,14,16,18],[17,1,17,13],[17,14,17,18],[18,1,18,13],[18,14,18,18],[19,1,19,13],[19,14,19,18],[20,1,20,13],[20,14,20,18],[21,1,21,13],[21,14,21,18],[22,1,22,13],[22,14,22,18],[23,1,23,13],[23,14,23,18],[24,1,24,13],[24,14,24,18],[25,1,25,13],[25,14,25,18],[26,1,26,13],[26,14,26,18],[27,1,27,13],[27,14,27,18]]}
["Числа в каждом ряду расположены по определённому правилу. Вы должны понять эту закономерность и записать в бланке ответов число, которое продолжает этот числовой ряд. В некоторых случаях для того, чтобы найти закономерность, необходимо мысленно выполнять арифметические действия."]
[]
[]
[]
[]
[]
[]
[]
[61,"6, 9, 12, 15, 18, 21, ...",null,null,null,null,null,null,null,null,null,null,null,null,null,null,null,null,null,null,null,null,null,null,null,null,{"$f":"IF(O9=24,1,0)","v":0}]
[62,"9, 1, 7, 1, 5, 1, ...",null,null,null,null,null,null,null,null,null,null,null,null,null,null,null,null,null,null,null,null,null,null,null,null,{"$f":"IF(O10=3,1,0)","v":0}]
[63,"2, 3 , 5, 6, 8, 9, ...",null,null,null,null,null,null,null,null,null,null,null,null,null,null,null,null,null,null,null,null,null,null,null,null,{"$f":"IF(O11=11,1,0)","v":0}]
[64,"10, 12, 9, 11, 8, 10, ...",null,null,null,null,null,null,null,null,null,null,null,null,null,null,null,null,null,null,null,null,null,null,null,null,{"$f":"IF(O12=7,1,0)","v":0}]
[65,"1, 3, 6, 8, 16, 18, ...",null,null,null,null,null,null,null,null,null,null,null,null,null,null,null,null,null,null,null,null,null,null,null,null,{"$f":"IF(O13=36,1,0)","v":0}]
[66,"3, 4, 6, 9, 13, 18, ...",null,null,null,null,null,null,null,null,null,null,null,null,null,null,null,null,null,null,null,null,null,null,null,null,{"$f":"IF(O14=24,1,0)","v":0}]
[67,"15, 13, 16, 12, 17, 11, ...",null,null,null,null,null,null,null,null,null,null,null,null,null,null,null,null,null,null,null,null,null,null,null,null,{"$f":"IF(O15=18,1,0)","v":0}]
[68,"1, 2 , 4, 8, 16, 32, ...",null,null,null,null,null,null,null,null,null,null,null,null,null,null,null,null,null,null,null,null,null,null,null,null,{"$f":"IF(O16=64,1,0)","v":0}]
[69,"1, 2, 5, 10, 17, 26, ...",null,null,null,null,null,null,null,null,null,null,null,null,null,null,null,null,null,null,null,null,null,null,null,null,{"$f":"IF(O17=37,1,0)","v":0}]
[70,"1, 4, 9, 16, 25, 36, ...",null,null,null,null,null,null,null,null,null,null,null,null,null,null,null,null,null,null,null,null,null,null,null,null,{"$f":"IF(O18=49,1,0)","v":0}]
[71,"128, 64, 32, 16, 8, 4, ...",null,null,null,null,null,null,null,null,null,null,null,null,null,null,null,null,null,null,null,null,null,null,null,null,{"$f":"IF(O19=2,1,0)","v":0}]
[72,"1, 2 , 6, 15, 31, 56, ...",null,null,null,null,null,null,null,null,null,null,null,null,null,null,null,null,null,null,null,null,null,null,null,null,{"$f":"IF(O20=92,1,0)","v":0}]
[73,"31, 24, 18, 13, 9, 6, ...",null,null,null,null,null,null,null,null,null,null,null,null,null,null,null,null,null,null,null,null,null,null,null,null,{"$f":"IF(O21=4,1,0)","v":0}]
[74,"255, 127, 63, 31, 15, 7, ...",null,null,null,null,null,null,null,null,null,null,null,null,null,null,null,null,null,null,null,null,null,null,null,null,{"$f":"IF(O22=3,1,0)","v":0}]
[75,"3, 4 , 8, 17, 33, 58, ...",null,null,null,null,null,null,null,null,null,null,null,null,null,null,null,null,null,null,null,null,null,null,null,null,{"$f":"IF(O23=94,1,0)","v":0}]
[76,"47, 39, 32, 26, 21, 17, ...",null,null,null,null,null,null,null,null,null,null,null,null,null,null,null,null,null,null,null,null,null,null,null,null,{"$f":"IF(O24=14,1,0)","v":0}]
[77,"174, 171, 57, 54, 18, 15, ...",null,null,null,null,null,null,null,null,null,null,null,null,null,null,null,null,null,null,null,null,null,null,null,null,{"$f":"IF(O25=5,1,0)","v":0}]
[78,"54, 19, 18, 14, 6, 9, ...",null,null,null,null,null,null,null,null,null,null,null,null,null,null,null,null,null,null,null,null,null,null,null,null,{"$f":"IF(O26=2,1,0)","v":0}]
[79,"301, 294, 49, 44, 11, 8, ...",null,null,null,null,null,null,null,null,null,null,null,null,null,null,null,null,null,null,null,null,null,null,null,null,{"$f":"IF(O27=4,1,0)","v":0}]
[80," 23, 46, 48, 96, 98, 196, ...",null,null,null,null,null,null,null,null,null,null,null,null,null,null,null,null,null,null,null,null,null,null,null,null,{"$f":"IF(O28=198,1,0)","v":0}]

{"sheet":"ОЭ","index":8,"n_rows":28,"n_cols":18,"rows_kept":28,"cut":false,"hidden":true,"merged":[[25,1,25,6],[25,7,25,8],[25,10,25,17],[27,1,28,8],[27,10,28,17],[13,1,13,6],[13,7,13,8],[13,10,13,17],[19,1,19,6],[19,7,19,8],[19,10,19,17],[1,1,1,8],[1,10,1,17],[7,1,7,6],[7,7,7,8],[7,10,7,17]]}
[]
[null,"Бланк ответа",null,null,null,null,null,null,null,null,"Правильные ответы"]
[null,1,{"$f":"'Эрудит (А)'!Y9","v":0},21,{"$f":"'Эрудит (К)'!Y9","v":0},41,{"$f":"'Эрудит (О)'!Y9","v":0},61,{"$f":"'Эрудит (З)'!AA9","v":0},null,1,"в",21,"а",41,"г",61,24]
[null,2,{"$f":"'Эрудит (А)'!Y10","v":0},22,{"$f":"'Эрудит (К)'!Y10","v":0},42,{"$f":"'Эрудит (О)'!Y10","v":0},62,{"$f":"'Эрудит (З)'!AA10","v":0},null,2,"б",22,"г",42,"б",62,3]
[null,3,{"$f":"'Эрудит (А)'!Y11","v":0},23,{"$f":"'Эрудит (К)'!Y11","v":0},43,{"$f":"'Эрудит (О)'!Y11","v":0},63,{"$f":"'Эрудит (З)'!AA11","v":0},null,3,"г",23,"г",43,"г",63,11]
[null,4,{"$f":"'Эрудит (А)'!Y12","v":0},24,{"$f":"'Эрудит (К)'!Y12","v":0},44,{"$f":"'Эрудит (О)'!Y12","v":0},64,{"$f":"'Эрудит (З)'!AA12","v":0},null,4,"г",24,"б",44,"в",64,7]
[null,5,{"$f":"'Эрудит (А)'!Y13","v":0},25,{"$f":"'Эрудит (К)'!Y13","v":0},45,{"$f":"'Эрудит (О)'!Y13","v":0},65,{"$f":"'Эрудит (З)'!AA13","v":0},null,5,"в",25,"г",45,"а",65,36]
[null,"Общественные науки",null,null,null,null,null,{"$f":"SUM(C3:C7,E3:E7,G3:G7)","v":0},null,null,"Общественные науки"]
[null,6,{"$f":"'Эрудит (А)'!Y14","v":0},26,{"$f":"'Эрудит (К)'!Y14","v":0},46,{"$f":"'Эрудит (О)'!Y14","v":0},66,{"$f":"'Эрудит (З)'!AA14","v":0},null,6,"а",26,"а",46,"в",66,24]
[null,7,{"$f":"'Эрудит (А)'!Y15","v":0},27,{"$f":"'Эрудит (К)'!Y15","v":0},47,{"$f":"'Эрудит (О)'!Y15","v":0},67,{"$f":"'Эрудит (З)'!AA15","v":0},null,7,"г",27,"а",47,"б",67,18]
[null,8,{"$f":"'Эрудит (А)'!Y16","v":0},28,{"$f":"'Эрудит (К)'!Y16","v":0},48,{"$f":"'Эрудит (О)'!Y16","v":0},68,{"$f":"'Эрудит (З)'!AA16","v":0},null,8,"в",28,"в",48,"б",68,64]
[null,9,{"$f":"'Эрудит (А)'!Y17","v":0},29,{"$f":"'Эрудит (К)'!Y17","v":0},49,{"$f":"'Эрудит (О)'!Y17","v":0},69,{"$f":"'Эрудит (З)'!AA17","v":0},null,9,"б",29,"б",49,"г",69,37]
[null,10,{"$f":"'Эрудит (А)'!Y18","v":0},30,{"$f":"'Эрудит (К)'!Y18","v":0},50,{"$f":"'Эрудит (О)'!Y18","v":0},70,{"$f":"'Эрудит (З)'!AA18","v":0},null,10,"г",30,"г",50,"а",70,49]
[null,"Гуманитарные науки",null,null,null,null,null,{"$f":"SUM(C9:C13,E9:E13,G9:G13)","v":0},null,null,"Гуманитарные науки"]
[null,11,{"$f":"'Эрудит (А)'!Y19","v":0},31,{"$f":"'Эрудит (К)'!Y19","v":0},51,{"$f":"'Эрудит (О)'!Y19","v":0},71,{"$f":"'Эрудит (З)'!AA19","v":0},null,11,"а",31,"б",51,"г",71,2]
[null,12,{"$f":"'Эрудит (А)'!Y20","v":0},32,{"$f":"'Эрудит (К)'!Y20","v":0},52,{"$f":"'Эрудит (О)'!Y20","v":0},72,{"$f":"'Эрудит (З)'!AA20","v":0},null,12,"г",32,"а",52,"а",72,92]
[null,13,{"$f":"'Эрудит (А)'!Y21","v":0},33,{"$f":"'Эрудит (К)'!Y21","v":0},53,{"$f":"'Эрудит (О)'!Y21","v":0},73,{"$f":"'Эрудит (З)'!AA21","v":0},null,13,"б",33,"в",53,"г",73,4]
[null,14,{"$f":"'Эрудит (А)'!Y22","v":0},34,{"$f":"'Эрудит (К)'!Y22","v":0},54,{"$f":"'Эрудит (О)'!Y22","v":0},74,{"$f":"'Эрудит (З)'!AA22","v":0},null,14,"в",34,"в",54,"в",74,3]
[null,15,{"$f":"'Эрудит (А)'!Y23","v":0},35,{"$f":"'Эрудит (К)'!Y23","v":0},55,{"$f":"'Эрудит (О)'!Y23","v":0},75,{"$f":"'Эрудит (З)'!AA23","v":0},null,15,"а",35,"г",55,"б",75,94]
[null,"Естественные науки",null,null,null,null,null,{"$f":"SUM(C15:C19,E15:E19,G15:G19)","v":0},null,null,"Естественные науки"]
[null,16,{"$f":"'Эрудит (А)'!Y24","v":0},36,{"$f":"'Эрудит (К)'!Y24","v":0},56,{"$f":"'Эрудит (О)'!Y24","v":0},76,{"$f":"'Эрудит (З)'!AA24","v":0},null,16,"а",36,"в",56,"в",76,14]
[null,17,{"$f":"'Эрудит (А)'!Y25","v":0},37,{"$f":"'Эрудит (К)'!Y25","v":0},57,{"$f":"'Эрудит (О)'!Y25","v":0},77,{"$f":"'Эрудит (З)'!AA25","v":0},null,17,"г",37,"г",57,"г",77,5]
[null,18,{"$f":"'Эрудит (А)'!Y26","v":0},38,{"$f":"'Эрудит (К)'!Y26","v":0},58,{"$f":"'Эрудит (О)'!Y26","v":0},78,{"$f":"'Эрудит (З)'!AA26","v":0},null,18,"а",38,"б",58,"а",78,2]
[null,19,{"$f":"'Эрудит (А)'!Y27","v":0},39,{"$f":"'Эрудит (К)'!Y27","v":0},59,{"$f":"'Эрудит (О)'!Y27","v":0},79,{"$f":"'Эрудит (З)'!AA27","v":0},null,19,"б",39,"б",59,"в",79,4]
[null,20,{"$f":"'Эрудит (А)'!Y28","v":0},40,{"$f":"'Эрудит (К)'!Y28","v":0},60,{"$f":"'Эрудит (О)'!Y28","v":0},80,{"$f":"'Эрудит (З)'!AA28","v":0},null,20,"в",40,"а",60,"б",80,198]
[null,"Физика-математика",null,null,null,null,null,{"$f":"SUM(C21:C25,E21:E25,G21:G25)","v":0},null,null,"Физика-математика"]
[null,"А",{"$f":"SUM(C3:C7,C9:C13,C15:C19,C21:C25)","v":0},"К",{"$f":"SUM(E3:E7,E9:E13,E15:E19,E21:E25)","v":0},"О",{"$f":"SUM(G3:G7,G9:G13,G15:G19,G21:G25)","v":0},"З",{"$f":"SUM(I3:I7,I9:I13,I15:I19,I21:I25)","v":0},null,"А",null,"К",null,"О",null,"З"]
[null,{"$f":"SUM(C27,E27,G27,I27)","v":0}]

{"sheet":"Проф. склонности","index":9,"n_rows":77,"n_cols":27,"rows_kept":77,"cut":false,"hidden":false,"merged":[[8,1,8,10],[8,11,8,17],[1,0,4,17],[6,1,6,10],[6,11,6,17],[7,1,7,10],[7,11,7,17],[9,1,9,10],[9,11,9,17],[10,1,10,10],[10,11,10,17],[11,1,11,10],[11,11,11,17],[12,1,12,10],[12,11,12,17],[13,1,13,10],[13,11,13,17],[14,1,14,10],[14,11,14,17],[15,1,15,10],[15,11,15,17],[16,1,16,10],[16,11,16,17],[17,1,17,10],[17,11,17,17],[18,1,18,10],[18,11,18,17],[19,1,19,10],[19,11,19,17],[20,1,20,10],[20,11,20,17],[21,1,21,10],[21,11,21,17],[22,1,22,10],[22,11,22,17],[23,1,23,10],[23,11,23,17],[24,1,24,10],[24,11,24,17],[25,1,25,10],[25,11,25,17],[26,1,26,10],[26,11,26,17],[27,1,27,10],[27,11,27,17],[28,1,28,10],[28,11,28,17],[29,1,29,10],[29,11,29,17]]}
[]
["Для того, чтобы определить свои профессиональные склонности, выберите один из трёх вариантов - \"а\", \"б\" или \"в\""]
[]
[]
[]
[null,null,null,null,null,null,null,null,null,null,null,null,null,null,null,null,null,null,null,null,null,null,null,null,null,null,"а) общаться с самыми разными людьми;"]
[1,"Мне хотелось бы в своей профессиональной деятельности…",null,null,null,null,null,null,null,null,null,null,null,null,null,null,null,null,null,null,null,null,null,null,null,null,"б) снимать фильмы, писать книги, рисовать, выступать на сцене и т.д."]
[2,"В книге или кинофильме меня больше всего привлекает…",null,null,null,null,null,null,null,null,null,null,null,null,null,null,null,null,null,null,null,null,null,null,null,null,"в) заниматься расчетами; вести документацию."]
[3,"Меня больше обрадует Нобелевская премия…",null,null,null,null,null,null,null,null,null,null,null,null,null,null,null,null,null,null,null,null,null,null,null,null,"а) возможность следить за ходом мыслей автора;"]
[4,"Я скорее соглашусь стать…",null,null,null,null,null,null,null,null,null,null,null,null,null,null,null,null,null,null,null,null,null,null,null,null,"б) художественная форма, мастерство писателя или режиссера;"]
[5,"Будущее людей определяют…",null,null,null,null,null,null,null,null,null,null,null,null,null,null,null,null,null,null,null,null,null,null,null,null,"в) сюжет, действия героев."]
[6,"Если я стану руководителем, то в первую очередь займусь…",null,null,null,null,null,null,null,null,null,null,null,null,null,null,null,null,null,null,null,null,null,null,null,null,"а) за общественную деятельность;"]
[7,"На технической выставке меня больше привлечет…",null,null,null,null,null,null,null,null,null,null,null,null,null,null,null,null,null,null,null,null,null,null,null,null,"б) в области науки;"]
[8,"В людях я ценю, прежде всего…",null,null,null,null,null,null,null,null,null,null,null,null,null,null,null,null,null,null,null,null,null,null,null,null,"в) в области искусства."]
[9,"В свободное время мне хотелось бы…",null,null,null,null,null,null,null,null,null,null,null,null,null,null,null,null,null,null,null,null,null,null,null,null,"а) главным механиком;"]
[10,"В заграничных поездках меня скорее заинтересует…",null,null,null,null,null,null,null,null,null,null,null,null,null,null,null,null,null,null,null,null,null,null,null,null,"б) начальником экспедиции;"]
[11,"Мне интереснее беседовать о…",null,null,null,null,null,null,null,null,null,null,null,null,null,null,null,null,null,null,null,null,null,null,null,null,"в) главным бухгалтером."]
[12,"Если бы в моей школе было всего три кружка, я бы выбрал(а)…",null,null,null,null,null,null,null,null,null,null,null,null,null,null,null,null,null,null,null,null,null,null,null,null,"а) взаимопонимание между людьми;"]
[13,"В школе следует обратить особое внимание на…",null,null,null,null,null,null,null,null,null,null,null,null,null,null,null,null,null,null,null,null,null,null,null,null,"б) научные открытия;"]
[14,"Я с большим удовольствием смотрю…",null,null,null,null,null,null,null,null,null,null,null,null,null,null,null,null,null,null,null,null,null,null,null,null,"в) развитие производства."]
[15,"Мне хотелось бы работать…",null,null,null,null,null,null,null,null,null,null,null,null,null,null,null,null,null,null,null,null,null,null,null,null,"а) созданием дружного, сплоченного коллектива;"]
[16,"Школа в первую очередь должна…",null,null,null,null,null,null,null,null,null,null,null,null,null,null,null,null,null,null,null,null,null,null,null,null,"б) разработкой новых технологий обучения;"]
[17,"Главное в жизни…",null,null,null,null,null,null,null,null,null,null,null,null,null,null,null,null,null,null,null,null,null,null,null,null,"в) работой с документами."]
[18,"Государство должно в первую очередь заботиться о…",null,null,null,null,null,null,null,null,null,null,null,null,null,null,null,null,null,null,null,null,null,null,null,null,"а) внутреннее устройство экспонатов;"]
[19,"Мне больше всего нравятся уроки…",null,null,null,null,null,null,null,null,null,null,null,null,null,null,null,null,null,null,null,null,null,null,null,null,"б) их практическое применение;"]
[20,"Мне интереснее было бы…",null,null,null,null,null,null,null,null,null,null,null,null,null,null,null,null,null,null,null,null,null,null,null,null,"в) внешний вид экспонатов (цвет, форма)."]
[21,"Я предпочитаю читать статьи о…",null,null,null,null,null,null,null,null,null,null,null,null,null,null,null,null,null,null,null,null,null,null,null,null,"а) дружелюбие и отзывчивость;"]
[22,"В свободное время я люблю…",null,null,null,null,null,null,null,null,null,null,null,null,null,null,null,null,null,null,null,null,null,null,null,null,"б) смелость и выносливость;"]
[23,"Больший интерес у меня вызовет сообщение о…",null,null,null,null,null,null,null,null,null,null,null,null,null,null,null,null,null,null,null,null,null,null,null,null,"в) обязательность и аккуратность."]
[24,"Я предпочту работать…",null,null,null,null,null,null,null,null,null,null,null,null,null,null,null,null,null,null,null,null,null,null,null,null,"а) ставить различные опыты, эксперименты;"]
[null,null,null,null,null,null,null,null,null,null,null,null,null,null,null,null,null,null,null,null,null,null,null,null,null,null,"б) писать стихи, сочинять музыку или рисовать;"]
[null,null,null,null,null,null,null,null,null,null,null,null,null,null,null,null,null,null,null,null,null,null,null,null,null,null,"в) тренироваться."]
[null,null,null,null,null,null,null,null,null,null,null,null,null,null,null,null,null,null,null,null,null,null,null,null,null,null,"а) возможность знакомства с историей и культурой другой страны;"]
[null,null,null,null,null,null,null,null,null,null,null,null,null,null,null,null,null,null,null,null,null,null,null,null,null,null,"б) экстремальный туризм (альпинизм, виндсерфинг, горные лыжи);"]
[null,null,null,null,null,null,null,null,null,null,null,null,null,null,null,null,null,null,null,null,null,null,null,null,null,null,"в) деловое общение"]
[null,null,null,null,null,null,null,null,null,null,null,null,null,null,null,null,null,null,null,null,null,null,null,null,null,null,"а) человеческих взаимоотношениях;"]
[null,null,null,null,null,null,null,null,null,null,null,null,null,null,null,null,null,null,null,null,null,null,null,null,null,null,"б) новой научной гипотезе;"]
[null,null,null,null,null,null,null,null,null,null,null,null,null,null,null,null,null,null,null,null,null,null,null,null,null,null,"в) технических характеристиках новой модели машины, компьютера."]
[null,null,null,null,null,null,null,null,null,null,null,null,null,null,null,null,null,null,null,null,null,null,null,null,null,null,"а) технический;"]
[null,null,null,null,null,null,null,null,null,null,null,null,null,null,null,null,null,null,null,null,null,null,null,null,null,null,"б) музыкальный;"]
[null,null,null,null,null,null,null,null,null,null,null,null,null,null,null,null,null,null,null,null,null,null,null,null,null,null,"в) спортивный."]
[null,null,null,null,null,null,null,null,null,null,null,null,null,null,null,null,null,null,null,null,null,null,null,null,null,null,"а) улучшение взаимопонимания между учителями и учениками;"]
[null,null,null,null,null,null,null,null,null,null,null,null,null,null,null,null,null,null,null,null,null,null,null,null,null,null,"б) поддержание здоровья учащихся, занятия спортом;"]
[null,null,null,null,null,null,null,null,null,null,null,null,null,null,null,null,null,null,null,null,null,null,null,null,null,null,"в) укрепление дисциплины."]
[null,null,null,null,null,null,null,null,null,null,null,null,null,null,null,null,null,null,null,null,null,null,null,null,null,null,"а) научно-популярные фильмы;"]
[null,null,null,null,null,null,null,null,null,null,null,null,null,null,null,null,null,"ф",null,null,null,null,null,null,null,null,"б) программы о культуре и искусстве;"]
[null,null,null,null,null,null,null,null,null,null,null,null,null,null,null,null,null,null,null,null,null,null,null,null,null,null,"в) спортивные программы."]
[null,null,null,null,null,null,null,null,null,null,null,null,null,null,null,null,null,null,null,null,null,null,null,null,null,null,"а) с детьми или сверстниками;"]
[null,null,null,null,null,null,null,null,null,null,null,null,null,null,null,null,null,null,null,null,null,null,null,null,null,null,"б) с машинами, механизмами;"]
[null,null,null,null,null,null,null,null,null,null,null,null,null,null,null,null,null,null,null,null,null,null,null,null,null,null,"в) с объектами природы."]
[null,null,null,null,null,null,null,null,null,null,null,null,null,null,null,null,null,null,null,null,null,null,null,null,null,null,"а) учить общению с другими людьми;"]
[null,null,null,null,null,null,null,null,null,null,null,null,null,null,null,null,null,null,null,null,null,null,null,null,null,null,"б) давать знания;"]
[null,null,null,null,null,null,null,null,null,null,null,null,null,null,null,null,null,null,null,null,null,null,null,null,null,null,"в) обучать навыкам работы."]
[null,null,null,null,null,null,null,null,null,null,null,null,null,null,null,null,null,null,null,null,null,null,null,null,null,null,"а) иметь возможность заниматься творчеством;"]
[null,null,null,null,null,null,null,null,null,null,null,null,null,null,null,null,null,null,null,null,null,null,null,null,null,null,"б) вести здоровый образ жизни;"]
[null,null,null,null,null,null,null,null,null,null,null,null,null,null,null,null,null,null,null,null,null,null,null,null,null,null,"в) тщательно планировать свои дела."]
[null,null,null,null,null,null,null,null,null,null,null,null,null,null,null,null,null,null,null,null,null,null,null,null,null,null,"а) защите интересов и прав граждан;"]
[null,null,null,null,null,null,null,null,null,null,null,null,null,null,null,null,null,null,null,null,null,null,null,null,null,null,"б) достижениях в области науки и техники;"]
[null,null,null,null,null,null,null,null,null,null,null,null,null,null,null,null,null,null,null,null,null,null,null,null,null,null,"в) материальном благополучии граждан."]
[null,null,null,null,null,null,null,null,null,null,null,null,null,null,null,null,null,null,null,null,null,null,null,null,null,null,"а) труда;"]
[null,null,null,null,null,null,null,null,null,null,null,null,null,null,null,null,null,null,null,null,null,null,null,null,null,null,"б) физкультуры;"]
[null,null,null,null,null,null,null,null,null,null,null,null,null,null,null,null,null,null,null,null,null,null,null,null,null,null,"в) математики."]
[null,null,null,null,null,null,null,null,null,null,null,null,null,null,null,null,null,null,null,null,null,null,null,null,null,null,"а) заниматься сбытом товаров;"]
[null,null,null,null,null,null,null,null,null,null,null,null,null,null,null,null,null,null,null,null,null,null,null,null,null,null,"б) изготавливать изделия;"]
[null,null,null,null,null,null,null,null,null,null,null,null,null,null,null,null,null,null,null,null,null,null,null,null,null,null,"в) планировать производство товаров."]
[null,null,null,null,null,null,null,null,null,null,null,null,null,null,null,null,null,null,null,null,null,null,null,null,null,null,"а) выдающихся ученых и их открытиях;"]
[null,null,null,null,null,null,null,null,null,null,null,null,null,null,null,null,null,null,null,null,null,null,null,null,null,null,"б) интересных изобретениях;"]
[null,null,null,null,null,null,null,null,null,null,null,null,null,null,null,null,null,null,null,null,null,null,null,null,null,null,"в) жизни и творчестве писателей, художников, музыкантов."]
[null,null,null,null,null,null,null,null,null,null,null,null,null,null,null,null,null,null,null,null,null,null,null,null,null,null,"а) читать, думать, рассуждать;"]
[null,null,null,null,null,null,null,null,null,null,null,null,null,null,null,null,null,null,null,null,null,null,null,null,null,null,"б) что-нибудь мастерить, шить, ухаживать за животными, растениями;"]
[null,null,null,null,null,null,null,null,null,null,null,null,null,null,null,null,null,null,null,null,null,null,null,null,null,null,"в) ходить на выставки, концерты, в музеи."]
[null,null,null,null,null,null,null,null,null,null,null,null,null,null,null,null,null,null,null,null,null,null,null,null,null,null,"а) научном открытии;"]
[null,null,null,null,null,null,null,null,null,null,null,null,null,null,null,null,null,null,null,null,null,null,null,null,null,null,"б) художественной выставке;"]
[null,null,null,null,null,null,null,null,null,null,null,null,null,null,null,null,null,null,null,null,null,null,null,null,null,null,"в) экономической ситуации."]
[null,null,null,null,null,null,null,null,null,null,null,null,null,null,null,null,null,null,null,null,null,null,null,null,null,null,"а) в помещении, где много людей;"]
[null,null,null,null,null,null,null,null,null,null,null,null,null,null,null,null,null,null,null,null,null,null,null,null,null,null,"б) в необычных условиях;"]
[null,null,null,null,null,null,null,null,null,null,null,null,null,null,null,null,null,null,null,null,null,null,null,null,null,null,"в) в обычном кабинете."]

{"sheet":"ОПС","index":10,"n_rows":27,"n_cols":49,"rows_kept":27,"cut":false,"hidden":true,"merged":[[0,0,0,6],[0,9,0,15],[1,17,1,24],[1,26,1,35],[2,17,2,24],[2,26,2,35],[6,17,6,24],[6,26,6,35],[3,17,3,24],[3,26,3,35],[4,17,4,24],[4,26,4,35],[5,17,5,24],[5,26,5,35]]}
["Образец бланка",null,null,null,null,null,null,null,null,"Ответы"]
[null,"I","II","III","IV","V","VI",null,null,null,"I","II","III","IV","V","VI",null,"Cклонность к работе с людьми",null,null,null,null,null,null,null,{"$f":"K27","v":0},{"$f":"IF(AND(Z2>=0,Z2<=3),\"Профессиональная склонность не выражена\",IF(AND(Z2>=4,Z2<=6),\"Cлабо выраженная профессиональная склонность\",IF(AND(Z2>=7,Z2<=9),\"Склонность к определенному виду деятельности\",IF(AND(Z2>=10,Z2<=12),\"Ярко выраженная профессиональная склонность\"))))","v":"Профессиональная склонность не выражена"}]
[1,"а",null,null,"б",null,"в",null,null,1,{"$f":"IF('Проф. склонности'!L7='Проф. склонности'!AA6,\"а\",)","v":0},null,null,{"$f":"IF('Проф. склонности'!L8='Проф. склонности'!AA7,\"б\",)","v":0},null,{"$f":"IF('Проф. склонности'!L8='Проф. склонности'!AA8,\"в\",)","v":0},null,"Cклонность к исследовательской (интеллектуальной) работе",null,null,null,null,null,null,null,{"$f":"L27","v":0},{"$f":"IF(AND(Z3>=0,Z3<=3),\"Профессиональная склонность не выражена\",IF(AND(Z3>=4,Z3<=6),\"Cлабо выраженная профессиональная склонность\",IF(AND(Z3>=7,Z3<=9),\"Склонность к определенному виду деятельности\",IF(AND(Z3>=10,Z3<=12),\"Ярко выраженная профессиональная склонность\"))))","v":"Профессиональная склонность не выражена"}]
[2,null,"а",null,"б","в",null,null,null,2,null,{"$f":"IF('Проф. склонности'!L8='Проф. склонности'!AA9,\"а\",)","v":0},null,{"$f":"IF('Проф. склонности'!L8='Проф. склонности'!AA10,\"б\",)","v":0},{"$f":"IF('Проф. склонности'!L8='Проф. склонности'!AA11,\"в\",)","v":0},null,null,"Cклонность к практической деятельности",null,null,null,null,null,null,null,{"$f":"M27","v":0},"Профессиональная склонность не выражена"]
[3,"а","б",null,"в",null,null,null,null,3,{"$f":"IF('Проф. склонности'!L9='Проф. склонности'!AA12,\"а\",)","v":0},{"$f":"IF('Проф. склонности'!L9='Проф. склонности'!AA13,\"б\",)","v":0},null,{"$f":"IF('Проф. склонности'!L9='Проф. склонности'!AA14,\"в\",)","v":0},null,null,null,"Cклонность к эстетическим видам деятельности",null,null,null,null,null,null,null,{"$f":"N27","v":0},"Профессиональная склонность не выражена"]
[4,null,null,"а",null,"б","в",null,null,4,null,null,{"$f":"IF('Проф. склонности'!L10='Проф. склонности'!AA15,\"а\",)","v":0},null,{"$f":"IF('Проф. склонности'!L10='Проф. склонности'!AA16,\"б\",)","v":0},{"$f":"IF('Проф. склонности'!L10='Проф. склонности'!AA17,\"в\",)","v":0},null,"Cклонность к экстремальным видам деятельности",null,null,null,null,null,null,null,{"$f":"O27","v":0},"Профессиональная склонность не выражена"]
[5,"а","б","в",null,null,null,null,null,5,{"$f":"IF('Проф. склонности'!L11='Проф. склонности'!AA18,\"а\",)","v":0},{"$f":"IF('Проф. склонности'!L11='Проф. склонности'!AA19,\"б\",)","v":0},{"$f":"IF('Проф. склонности'!L11='Проф. склонности'!AA20,\"в\",)","v":0},null,null,null,null,"Cклонность к планово-экономическим видам деятельности",null,null,null,null,null,null,null,{"$f":"P27","v":0},"Профессиональная склонность не выражена"]
[6,"а","б",null,null,null,"в",null,null,6,{"$f":"IF('Проф. склонности'!L12='Проф. склонности'!AA21,\"а\",)","v":0},{"$f":"IF('Проф. склонности'!L12='Проф. склонности'!AA22,\"б\",)","v":0},null,null,null,{"$f":"IF('Проф. склонности'!L12='Проф. склонности'!AA23,\"в\",)","v":0}]
[7,null,"а","б","в",null,null,null,null,7,null,{"$f":"IF('Проф. склонности'!L13='Проф. склонности'!AA24,\"а\",)","v":0},{"$f":"IF('Проф. склонности'!L13='Проф. склонности'!AA25,\"б\",)","v":0},{"$f":"IF('Проф. склонности'!L13='Проф. склонности'!AA26,\"в\",)","v":0}]
[8,"а",null,null,null,"б","в",null,null,8,{"$f":"IF('Проф. склонности'!L14='Проф. склонности'!AA27,\"а\",)","v":0},null,null,null,{"$f":"IF('Проф. склонности'!L14='Проф. склонности'!AA28,\"б\",)","v":0},{"$f":"IF('Проф. склонности'!L14='Проф. склонности'!AA29,\"в\",)","v":0}]
[9,null,"а",null,"б","в",null,null,null,9,null,{"$f":"IF('Проф. склонности'!L15='Проф. склонности'!AA30,\"а\",)","v":0},null,{"$f":"IF('Проф. склонности'!L15='Проф. склонности'!AA31,\"б\",)","v":0},{"$f":"IF('Проф. склонности'!L15='Проф. склонности'!AA32,\"в\",)","v":0},null,null,null,null,null,null,null,null,null,null,null,null,null,null,null,null,null,null,null,null,null,null,null,null,null,null,null,null,null,null,0,0,0]
[10,null,null,null,"а","б","в",null,null,10,null,null,null,{"$f":"IF('Проф. склонности'!L16='Проф. склонности'!AA33,\"а\",)","v":0},{"$f":"IF('Проф. склонности'!L16='Проф. склонности'!AA34,\"б\",)","v":0},{"$f":"IF('Проф. склонности'!L16='Проф. склонности'!AA35,\"в\",)","v":0},null,null,null,null,null,null,null,null,null,null,null,null,null,null,null,null,null,null,null,null,null,null,null,null,null,null,null,null,null,0,0,0]
[11,"а","б","в",null,null,null,null,null,11,{"$f":"IF('Проф. склонности'!L17='Проф. склонности'!AA36,\"а\",)","v":0},{"$f":"IF('Проф. склонности'!L17='Проф. склонности'!AA37,\"б\",)","v":0},{"$f":"IF('Проф. склонности'!L17='Проф. склонности'!AA38,\"в\",)","v":0},null,null,null,null,null,null,null,null,null,null,null,null,null,null,null,null,null,null,null,null,null,null,null,null,null,null,null,null,null,null,null,null,0,0,0,0]
[12,null,null,"а","б","в",null,null,null,12,null,null,{"$f":"IF('Проф. склонности'!L18='Проф. склонности'!AA39,\"а\",)","v":0},{"$f":"IF('Проф. склонности'!L18='Проф. склонности'!AA40,\"б\",)","v":0},{"$f":"IF('Проф. склонности'!L18='Проф. склонности'!AA41,\"в\",)","v":0}]
[13,"а",null,null,null,"б","в",null,null,13,{"$f":"IF('Проф. склонности'!L19='Проф. склонности'!AA42,\"а\",)","v":0},null,null,null,{"$f":"IF('Проф. склонности'!L19='Проф. склонности'!AA43,\"б\",)","v":0},{"$f":"IF('Проф. склонности'!L19='Проф. склонности'!AA44,\"в\",)","v":0}]
[14,null,"а",null,"б","в",null,null,null,14,null,{"$f":"IF('Проф. склонности'!L20='Проф. склонности'!AA45,\"а\",)","v":0},null,{"$f":"IF('Проф. склонности'!L20='Проф. склонности'!AA46,\"б\",)","v":0},{"$f":"IF('Проф. склонности'!L20='Проф. склонности'!AA47,\"в\",)","v":0}]
[15,"а",null,"б",null,"в",null,null,null,15,{"$f":"IF('Проф. склонности'!L21='Проф. склонности'!AA48,\"а\",)","v":0},null,{"$f":"IF('Проф. склонности'!L21='Проф. склонности'!AA49,\"б\",)","v":0},null,{"$f":"IF('Проф. склонности'!L21='Проф. склонности'!AA50,\"в\",)","v":0}]
[16,"а",null,"б",null,null,"в",null,null,16,{"$f":"IF('Проф. склонности'!L22='Проф. склонности'!AA51,\"а\",)","v":0},null,{"$f":"IF('Проф. склонности'!L22='Проф. склонности'!AA52,\"б\",)","v":0},null,null,{"$f":"IF('Проф. склонности'!L22='Проф. склонности'!AA53,\"в\",)","v":0}]
[17,null,null,null,"а","б","в",null,null,17,null,null,null,{"$f":"IF('Проф. склонности'!L23='Проф. склонности'!AA54,\"а\",)","v":0},{"$f":"IF('Проф. склонности'!L23='Проф. склонности'!AA55,\"б\",)","v":0},{"$f":"IF('Проф. склонности'!L23='Проф. склонности'!AA56,\"в\",)","v":0}]
[18,"а","б","в",null,null,null,null,null,18,{"$f":"IF('Проф. склонности'!L24='Проф. склонности'!AA57,\"а\",)","v":0},{"$f":"IF('Проф. склонности'!L24='Проф. склонности'!AA58,\"б\",)","v":0},{"$f":"IF('Проф. склонности'!L24='Проф. склонности'!AA59,\"в\",)","v":0}]
[19,null,null,"а",null,"б","в",null,null,19,null,null,{"$f":"IF('Проф. склонности'!L25='Проф. склонности'!AA60,\"а\",)","v":0},null,{"$f":"IF('Проф. склонности'!L25='Проф. склонности'!AA61,\"б\",)","v":0},{"$f":"IF('Проф. склонности'!L25='Проф. склонности'!AA62,\"в\",)","v":0}]
[20,"а",null,"б",null,null,"в",null,null,20,{"$f":"IF('Проф. склонности'!L26='Проф. склонности'!AA63,\"а\",)","v":0},null,{"$f":"IF('Проф. склонности'!L26='Проф. склонности'!AA64,\"б\",)","v":0},null,null,{"$f":"IF('Проф. склонности'!L26='Проф. склонности'!AA65,\"в\",)","v":0}]
[21,null,"а","б","в",null,null,null,null,21,null,{"$f":"IF('Проф. склонности'!L27='Проф. склонности'!AA66,\"а\",)","v":0},{"$f":"IF('Проф. склонности'!L28='Проф. склонности'!AA67,\"б\",)","v":0},{"$f":"IF('Проф. склонности'!L28='Проф. склонности'!AA68,\"в\",)","v":0}]
[22,null,"а","б","в",null,null,null,null,22,null,{"$f":"IF('Проф. склонности'!L28='Проф. склонности'!AA69,\"а\",)","v":0},{"$f":"IF('Проф. склонности'!L28='Проф. склонности'!AA70,\"б\",)","v":0},{"$f":"IF('Проф. склонности'!L28='Проф. склонности'!AA71,\"в\",)","v":0}]
[23,null,"а",null,"б",null,"в",null,null,23,null,{"$f":"IF('Проф. склонности'!L29='Проф. склонности'!AA72,\"а\",)","v":0},null,{"$f":"IF('Проф. склонности'!L29='Проф. склонности'!AA73,\"б\",)","v":0},null,{"$f":"IF('Проф. склонности'!L29='Проф. склонности'!AA74,\"в\",)","v":0}]
[24,"а",null,null,null,"б","в",null,null,24,{"$f":"IF('Проф. склонности'!L30='Проф. склонности'!AA75,\"а\",)","v":0},null,null,null,{"$f":"IF('Проф. склонности'!L30='Проф. склонности'!AA76,\"б\",)","v":0},{"$f":"IF('Проф. склонности'!L30='Проф. склонности'!AA77,\"в\",)","v":0}]
["Сумма баллов",null,null,null,null,null,null,null,null,"Сумма баллов",{"$f":"COUNTIF(K3:K26,\"<>0\")-12","v":0},{"$f":"COUNTIF(L3:L26,\"<>0\")-12","v":0},{"$f":"COUNTIF(M3:M26,\"<>0\")-12","v":0},{"$f":"COUNTIF(N3:N26,\"<>0\")-12","v":0},0,0]

{"sheet":"Профиль обучения","index":11,"n_rows":39,"n_cols":44,"rows_kept":39,"cut":false,"hidden":true,"merged":[[37,28,39,30],[37,32,39,34],[37,35,39,35],[37,36,39,38],[37,39,39,39],[37,40,39,43],[34,28,36,30],[34,32,36,34],[34,35,36,35],[34,36,34,38],[34,40,36,42],[34,43,36,43],[35,36,35,38],[36,36,36,39],[31,28,33,30],[31,32,33,34],[31,35,33,35],[31,36,31,38],[31,40,33,42],[31,43,33,43],[32,36,32,38],[33,36,33,39],[28,28,30,30],[28,32,29,34],[28,35,29,35],[28,36,28,38],[28,40,28,42],[29,36,29,38],[29,40,29,42],[30,32,30,34],[30,36,30,39],[30,40,30,43],[23,36,23,39],[23,40,23,42],[24,36,24,39],[24,40,24,42],[19,36,19,39],[19,40,19,42],[20,36,20,39],[20,40,20,42],[25,28,27,30],[25,32,27,34],[25,35,27,35],[25,36,25,38],[25,40,25,42],[26,36,26,38],[26,40,26,42],[27,36,27,39],[27,40,27,43],[15,36,15,39],[15,40,15,42],[10,36,10,38],[10,40,10,42],[11,36,11,39],[11,40,11,42],[21,28,24,30],[21,32,24,34],[21,35,24,35],[21,36,21,38],[21,40,21,42],[22,36,22,38],[16,28,20,30],[16,32,20,34],[16,35,20,35],[16,36,16,38],[16,40,16,42],[17,36,17,38],[17,40,17,42],[18,31,20,31],[18,36,18,39],[18,40,18,42],[22,40,22,42],[23,31,24,31],[5,36,5,38],[5,40,5,42],[6,36,6,38],[6,40,6,42],[12,28,15,30],[12,32,15,34],[12,35,15,35],[12,36,12,38],[12,40,12,42],[13,36,13,38],[7,31,8,31],[7,36,7,39],[7,40,7,42],[8,36,8,39],[8,40,8,42],[9,28,11,30],[9,32,11,34],[9,35,11,35],[9,36,9,38],[9,40,9,42],[13,40,13,42],[14,31,15,31],[14,36,14,39],[14,40,14,42],[0,36,1,39],[0,40,1,43],[2,28,4,30],[2,32,4,34],[2,35,4,35],[2,36,2,38],[2,40,2,42],[3,36,3,38],[3,40,3,42],[4,36,4,39],[4,40,4,42],[0,28,1,31],[0,32,1,35],[5,28,8,30],[5,32,8,34],[5,35,8,35],[18,14,20,14],[14,23,14,25],[15,23,15,25],[12,15,15,17],[13,19,13,21],[15,19,15,22],[7,23,7,25],[8,23,8,25],[0,11,1,14],[0,15,1,18],[5,18,8,18],[0,19,1,22],[4,19,4,22],[20,0,20,2],[20,3,20,6],[28,11,30,13],[16,15,20,17],[25,11,27,13],[23,19,23,22],[24,19,24,22],[27,19,27,22],[19,0,19,6],[22,0,22,6],[23,0,23,2],[23,3,23,6],[5,15,8,17],[8,19,8,22],[9,19,9,21],[10,19,10,21],[9,15,11,17],[16,19,16,21],[12,8,13,8],[34,26,36,26],[37,23,39,26],[30,19,30,22],[33,19,33,22],[36,19,36,22],[37,22,39,22],[9,18,11,18],[12,18,15,18],[27,23,27,26],[30,23,30,26],[31,26,33,26],[16,18,20,18],[11,19,11,22],[12,19,12,21],[35,19,35,21],[28,23,28,25],[29,23,29,25],[21,23,21,25],[22,23,22,25],[23,23,23,25],[24,23,24,25],[16,23,16,25],[14,19,14,22],[13,23,13,25],[0,23,1,26],[2,18,4,18],[18,19,18,22],[19,19,19,22],[20,19,20,22],[2,15,4,17],[4,23,4,25],[5,19,5,21],[6,19,6,21],[5,23,5,25],[6,23,6,25],[7,19,7,22],[2,19,2,21],[3,19,3,21],[2,23,2,25],[3,23,3,25],[19,23,19,25],[20,23,20,25],[17,23,17,25],[18,23,18,25],[9,23,9,25],[10,23,10,25],[11,23,11,25],[12,23,12,25],[31,23,33,25],[34,15,36,17],[34,23,36,25],[31,19,31,21],[32,19,32,21],[34,19,34,21],[25,15,27,17],[25,23,25,25],[26,23,26,25],[28,15,29,17],[30,15,30,17],[28,19,28,21],[29,19,29,21],[25,19,25,21],[26,19,26,21],[34,18,36,18],[28,18,29,18],[31,18,33,18],[25,18,27,18],[2,11,4,13],[9,11,11,13],[5,11,8,13],[16,11,20,13],[21,19,21,21],[37,19,39,21],[17,19,17,21],[22,19,22,21],[7,14,8,14],[14,14,15,14],[37,18,39,18],[21,18,24,18],[12,11,15,13],[12,9,13,9],[8,5,8,9],[9,5,9,7],[10,5,11,7],[10,8,11,8],[10,9,11,9],[12,5,13,7],[37,15,39,17],[31,15,33,17],[21,15,24,17],[21,11,24,13],[23,14,24,14],[14,5,14,7],[15,5,15,7],[16,5,17,7],[16,8,17,8],[16,9,17,9],[26,5,26,6],[27,5,27,6],[31,11,33,13],[34,11,36,13],[37,11,39,13],[14,0,14,2],[15,0,15,2],[16,0,16,2],[17,0,17,2],[10,0,10,2],[11,0,11,2],[12,0,12,2],[13,0,13,2],[4,0,4,4],[8,0,8,3],[9,0,9,2],[4,6,4,9],[5,0,5,4],[5,6,5,9],[6,0,6,4],[6,6,6,9],[0,0,0,9],[1,0,1,4],[1,6,1,9],[2,0,2,4],[2,6,2,9],[3,0,3,4],[3,6,3,9],[34,0,34,4],[34,5,34,6],[35,0,35,4],[35,5,35,6],[25,0,25,6],[31,0,31,4],[31,5,31,6],[32,0,32,4],[32,5,32,6],[33,0,33,4],[33,5,33,6],[28,0,28,4],[28,5,28,6],[29,0,29,4],[29,5,29,6],[30,0,30,4],[30,5,30,6],[26,0,26,4],[27,0,27,4]]}
["Опросник профессиональных склонностей",null,null,null,null,null,null,null,null,null,null,"Профиль обучения",null,null,null,"Опросник профессиональных склонностей",null,null,null,"Опросник тип мышления",null,null,null,"Методика \"Эрудит\"",null,null,null,null,"Профиль обучения",null,null,null,"Опросник профессиональных склонностей",null,null,null,"Опросник тип мышления",null,null,null,"Методика \"Эрудит\""]
["Cклонность к работе с людьми",null,null,null,null,{"$f":"ОПС!Z2","v":0},{"$f":"IF(AND(I2>=0,I2<=3),\"Профессиональная склонность не выражена\",IF(AND(I2>=4,I2<=6),\"Cлабо выраженная профессиональная склонность\",IF(AND(I2>=7,I2<=9),\"Склонность к определенному виду деятельности\",IF(AND(I2>=10,I2<=12),\"Ярко выраженная профессиональная склонность\"))))","v":"Профессиональная склонность не выражена"}]
["Cклонность к интеллектуальной работе",null,null,null,null,{"$f":"ОПС!Z3","v":0},{"$f":"IF(AND(I3>=0,I3<=3),\"Профессиональная склонность не выражена\",IF(AND(I3>=4,I3<=6),\"Cлабо выраженная профессиональная склонность\",IF(AND(I3>=7,I3<=9),\"Склонность к определенному виду деятельности\",IF(AND(I3>=10,I3<=12),\"Ярко выраженная профессиональная склонность\"))))","v":"Профессиональная склонность не выражена"},null,null,{"$f":"IF(AND(I3>=0,I3<=3),\"Профессиональная склонность не выражена\",IF(AND(I3>=4,I3<=6),\"Cлабо выраженная профессиональная склонность\",IF(AND(I3>=7,I3<=9),\"Склонность к определенному виду деятельности\",IF(AND(I3>=10,I3<=12),\"Ярко выраженная профессиональная склонность\"))))","v":"Профессиональная склонность не выражена"},null,"Физико математический",null,null,{"$f":"S3","v":1},"Склонности к исследовательской (интелектуальной) деятельности",null,null,{"$f":"IF(MAX(F2:F7)=F3,1,0)","v":1},"Абстрактно-символическое",null,null,{"$f":"IF(MAX(I11:I18)=I13,1,0)","v":1},"Физика и математика",null,null,{"$f":"IF(MAX(D11:D18)=D18,1,0)","v":1},null,"Физико математический",null,null,{"$f":"AJ3","v":1},"Склонности к исследовательской (интелектуальной) деятельности",null,null,{"$f":"IF(MAX(F2:F7)=F3,1,0)","v":1},"Абстрактно-символическое",null,null,{"$f":"IF(MAX(I11:I18)=I13,1,0)","v":1},"Физика и математика",null,null,{"$f":"IF(OR(MAX(D11:D18)=D18,MAX(D11:D18)-1=D18),1,0)","v":1}]
["Cклонность к практической деятельности",null,null,null,null,{"$f":"ОПС!Z4","v":0},"Профессиональная склонность не выражена",null,null,"Профессиональная склонность не выражена",null,null,null,null,{"$f":"IF(OR(W3=1,W4=1),1,0)","v":1},null,null,null,null,"Предметно-действенное",null,null,{"$f":"IF(MAX(I11:I18)=I11,1,0)","v":1},"Поиск закономерностей",null,null,{"$f":"IF(MAX(D11:D18)=D14,1,0)","v":1},null,null,null,null,{"$f":"IF(OR(AN3=1,AN4=1),1,0)","v":1},null,null,null,null,"Предметно-действенное",null,null,{"$f":"IF(MAX(I11:I18)=I11,1,0)","v":1},"Поиск закономерностей",null,null,{"$f":"IF(OR(MAX(D11:D18)=D14,MAX(D11:D18)-1=D14),1,0)","v":1}]
["Cклонность к эстетическим видам деятельности",null,null,null,null,{"$f":"ОПС!Z5","v":0},"Профессиональная склонность не выражена",null,null,"Профессиональная склонность не выражена",null,null,null,null,{"$f":"IF(OR(AA3=1,AA4=1,AA5=1),1,0)","v":1},null,null,null,null,null,null,null,null,"Установление аналогий",null,null,{"$f":"IF(MAX(D11:D18)=D11,1,0)","v":1},null,null,null,null,{"$f":"IF(OR(AR3=1,AR4=1,AR5=1),1,0)","v":1},null,null,null,null,null,null,null,null,"Установление аналогий",null,null,{"$f":"IF(OR(MAX(D11:D18)=D11,MAX(D11:D18)-1=D11),1,0)","v":1}]
["Cклонность к экстремальным видам деятельности",null,null,null,null,{"$f":"ОПС!Z6","v":0},"Профессиональная склонность не выражена",null,null,"Профессиональная склонность не выражена",null,"Естественно-научный \n(физика и химия)",null,null,{"$f":"S6","v":1},"Склонности к исследовательской (интелектуальной) деятельности",null,null,{"$f":"IF(MAX(F2:F7)=F3,1,0)","v":1},"Абстрактно-символическое",null,null,{"$f":"IF(MAX(I11:I18)=I13,1,0)","v":1},"Физика и математика",null,null,{"$f":"IF(MAX(D11:D18)=D18,1,0)","v":1},null,"Естественно-научный \n(физика и химия)",null,null,{"$f":"AJ6","v":1},"Склонности к исследовательской (интелектуальной) деятельности",null,null,{"$f":"IF(MAX(F2:F7)=F3,1,0)","v":1},"Абстрактно-символическое",null,null,{"$f":"IF(MAX(I11:I18)=I13,1,0)","v":1},"Физика и математика",null,null,{"$f":"IF(OR(MAX(D11:D18)=D18,MAX(D11:D18)-1=D18),1,0)","v":1}]
["Cклонность к планово-экономической деятельности",null,null,null,null,{"$f":"ОПС!Z7","v":0},"Профессиональная склонность не выражена",null,null,"Профессиональная склонность не выражена",null,null,null,null,{"$f":"IF(OR(W6=1,W7=1),1,0)","v":1},null,null,null,null,"Предметно-действенное",null,null,{"$f":"IF(MAX(I11:I18)=I11,1,0)","v":1},"Естественные науки",null,null,{"$f":"IF(MAX(D11:D18)=D17,1,0)","v":1},null,null,null,null,{"$f":"IF(OR(AN6=1,AN7=1),1,0)","v":1},null,null,null,null,"Предметно-действенное",null,null,{"$f":"IF(MAX(I11:I18)=I11,1,0)","v":1},"Естественные науки",null,null,{"$f":"IF(OR(MAX(D11:D18)=D17,MAX(D11:D18)-1=D17),1,0)","v":1}]
[null,null,null,null,null,null,null,null,null,null,null,null,null,null,{"$f":"IF(OR(AA6=1,AA7=1,AA8=1,AA9=1),1,0)","v":1},null,null,null,null,null,null,null,null,"Аналогии",null,null,{"$f":"IF(MAX(D11:D18)=D11,1,0)","v":1},null,null,null,null,{"$f":"IF(OR(AR6=1,AR7=1,AR8=1,AR9=1),1,0)","v":1},null,null,null,null,null,null,null,null,"Аналогии",null,null,{"$f":"IF(OR(MAX(D11:D18)=D11,MAX(D11:D18)-1=D11),1,0)","v":1}]
["Методика Эрудит",null,null,null,null,"Методика «Тип мышления»",null,null,null,null,null,null,null,null,null,null,null,null,null,null,null,null,null,"Поиск закономерностей",null,null,{"$f":"IF(MAX(D11:D18)=D14,1,0)","v":1},null,null,null,null,null,null,null,null,null,null,null,null,null,"Поиск закономерностей",null,null,{"$f":"IF(MAX(D11:D18)=D14,1,0)","v":1}]
["Шкала",null,null,"Баллы",null,"Шкала",null,null,"Баллы","Уровень",null,"Естественно-научный (биология и география)",null,null,{"$f":"S10","v":1},"Склонности к исследовательской (интелектуальной) деятельности",null,null,{"$f":"IF(MAX(F2:F7)=F3,1,0)","v":1},"Абстрактно-символическое",null,null,{"$f":"IF(MAX(I11:I18)=I13,1,0)","v":1},"Естественные науки",null,null,{"$f":"IF(MAX(D11:D18)=D17,1,0)","v":1},null,"Естественно-научный (биология и география)",null,null,{"$f":"AJ10","v":1},"Склонности к исследовательской (интелектуальной) деятельности",null,null,{"$f":"IF(MAX(F2:F7)=F3,1,0)","v":1},"Абстрактно-символическое",null,null,{"$f":"IF(MAX(I11:I18)=I13,1,0)","v":1},"Естественные науки",null,null,{"$f":"IF(MAX(D11:D18)=D17,1,0)","v":1}]
["Аналогии",null,null,{"$f":"ОЭ!C27","v":0},null,"Предметно-действенное",null,null,{"$f":"ОТМ!J11","v":0},{"$f":"Итог!K19","v":"Низкий"},null,null,null,null,{"$f":"IF(OR(W10=1,W11=1),1,0)","v":1},null,null,null,null,"Предметно-действенное",null,null,{"$f":"IF(MAX(I11:I18)=I11,1,0)","v":1},"Установление аналогий",null,null,{"$f":"IF(MAX(D11:D18)=D11,1,0)","v":1},null,null,null,null,{"$f":"IF(OR(AN10=1,AN11=1),1,0)","v":1},null,null,null,null,"Предметно-действенное",null,null,{"$f":"IF(MAX(I11:I18)=I11,1,0)","v":1},"Установление аналогий",null,null,{"$f":"IF(MAX(D11:D18)=D11,1,0)","v":1}]
["Классификация",null,null,{"$f":"ОЭ!E27","v":0},null,null,null,null,null,null,null,null,null,null,{"$f":"IF(OR(AA10=1,AA11=1,AA12=1),1,0)","v":1},null,null,null,null,null,null,null,null,"Поиск закономерностей",null,null,{"$f":"IF(MAX(D11:D18)=D14,1,0)","v":1},null,null,null,null,{"$f":"IF(OR(AR10=1,AR11=1,AR12=1),1,0)","v":1},null,null,null,null,null,null,null,null,"Поиск закономерностей",null,null,{"$f":"IF(OR(MAX(D11:D18)=D14,MAX(D11:D18)-1=D14),1,0)","v":1}]
["Обобщение",null,null,{"$f":"ОЭ!G27","v":0},null,"Абстрактно-символическое",null,null,{"$f":"ОТМ!J12","v":0},{"$f":"Итог!K21","v":"Низкий"},null,"Социально-экономический",null,null,{"$f":"S13","v":1},"Склонность к планово-экономической деятельности",null,null,{"$f":"IF(MAX(F2:F7)=F7,1,0)","v":1},"Абстрактно-символическое",null,null,{"$f":"IF(MAX(I11:I18)=I13,1,0)","v":1},"Общественные науки",null,null,{"$f":"IF(MAX(D11:D18)=D15,1,0)","v":1},null,"Социально-экономический",null,null,{"$f":"AJ13","v":1},"Склонность к планово-экономической деятельности",null,null,{"$f":"IF(MAX(F2:F7)=F7,1,0)","v":1},"Абстрактно-символическое",null,null,{"$f":"IF(MAX(I11:I18)=I13,1,0)","v":1},"Общественные науки",null,null,{"$f":"IF(OR(MAX(D11:D18)=D15,MAX(D11:D18)-1=D15),1,0)","v":1}]
["Закономерности",null,null,{"$f":"ОЭ!I27","v":0},null,null,null,null,null,null,null,null,null,null,{"$f":"IF(OR(W13=1,W14=1),1,0)","v":1},null,null,null,null,"Словесно-логическое",null,null,{"$f":"IF(MAX(I11:I18)=I15,1,0)","v":1},"Аналогии",null,null,{"$f":"IF(MAX(D11:D18)=D11,1,0)","v":1},null,null,null,null,{"$f":"IF(OR(AN13=1,AN14=1),1,0)","v":1},null,null,null,null,"Словесно-логическое",null,null,{"$f":"IF(MAX(I11:I18)=I15,1,0)","v":1},"Аналогии",null,null,{"$f":"IF(OR(MAX(D11:D18)=D11,MAX(D11:D18)-1=D11),1,0)","v":1}]
["Общественные науки",null,null,{"$f":"ОЭ!H8","v":0},null,"Словесно-логическое",null,null,{"$f":"ОТМ!J13","v":0},{"$f":"Итог!K23","v":"Низкий"},null,null,null,null,{"$f":"IF(OR(AA13=1,AA14=1,AA15=1,AA16=1),1,0)","v":1},null,null,null,null,null,null,null,null,"Обобщение",null,null,{"$f":"IF(MAX(D11:D18)=D13,1,0)","v":1},null,null,null,null,{"$f":"IF(OR(AR13=1,AR14=1,AR15=1,AR16=1),1,0)","v":1},null,null,null,null,null,null,null,null,"Обобщение",null,null,{"$f":"IF(OR(MAX(D11:D18)=D13,MAX(D11:D18)-1=D13),1,0)","v":1}]
["Гуманитарные науки",null,null,{"$f":"ОЭ!H14","v":0},null,"Наглядно-образное",null,null,{"$f":"ОТМ!J14","v":0},{"$f":"Итог!K24","v":"Низкий"},null,null,null,null,null,null,null,null,null,null,null,null,null,"Класификации",null,null,{"$f":"IF(MAX(D11:D18)=D12,1,0)","v":1},null,null,null,null,null,null,null,null,null,null,null,null,null,"Класификации",null,null,{"$f":"IF(OR(MAX(D11:D18)=D12,MAX(D11:D18)-1=D12),1,0)","v":1}]
["Естественные науки",null,null,{"$f":"ОЭ!H20","v":0},null,"Креативность (творческое)",null,null,{"$f":"ОТМ!J15","v":0},{"$f":"Итог!K25","v":"Низкий"},null,"Гуманитарный",null,null,{"$f":"S17","v":1},"Склонность к работе с людьми",null,null,{"$f":"IF(MAX(F2:F7)=F2,1,0)","v":1},"Словесно-логическое",null,null,{"$f":"IF(MAX(I11:I18)=I15,1,0)","v":1},"Общественные науки",null,null,{"$f":"IF(MAX(D11:D18)=D15,1,0)","v":1},null,"Гуманитарный",null,null,{"$f":"AJ17","v":1},"Склонность к работе с людьми",null,null,{"$f":"IF(MAX(F2:F7)=F2,1,0)","v":1},"Словесно-логическое",null,null,{"$f":"IF(MAX(I11:I18)=I15,1,0)","v":1},"Общественные науки",null,null,{"$f":"IF(OR(MAX(D11:D18)=D15,MAX(D11:D18)-1=D15),1,0)","v":1}]
["Физика-математика",null,null,{"$f":"ОЭ!H26","v":0},null,null,null,null,null,null,null,null,null,null,{"$f":"IF(OR(W17=1,W18=1),1,0)","v":1},null,null,null,null,"Предметно-действенное",null,null,{"$f":"IF(MAX(I11:I18)=I11,1,0)","v":1},"Гуманитарные науки",null,null,{"$f":"IF(MAX(D11:D18)=D16,1,0)","v":1},null,null,null,null,{"$f":"IF(OR(AN17=1,AN18=1),1,0)","v":1},null,null,null,null,"Предметно-действенное",null,null,{"$f":"IF(MAX(I11:I18)=I11,1,0)","v":1},"Гуманитарные науки",null,null,{"$f":"IF(OR(MAX(D11:D18)=D16,MAX(D11:D18)-1=D16),1,0)","v":1}]
[null,null,null,null,null,null,null,null,null,null,null,null,null,null,{"$f":"IF(OR(AA17=1,AA18=1,AA19=1,AA20=1,AA21=1),1,0)","v":1},null,null,null,null,null,null,null,null,"Аналогии",null,null,{"$f":"IF(MAX(D11:D18)=D11,1,0)","v":1},null,null,null,null,{"$f":"IF(OR(AR17=1,AR18=1,AR19=1,AR20=1,AR21=1),1,0)","v":1},null,null,null,null,null,null,null,null,"Аналогии",null,null,{"$f":"IF(OR(MAX(D11:D18)=D11,MAX(D11:D18)-1=D11),1,0)","v":1}]
["Жесткие рамки",null,null,null,null,null,null,null,null,null,null,null,null,null,null,null,null,null,null,null,null,null,null,"Обобщение",null,null,{"$f":"IF(MAX(D11:D18)=D13,1,0)","v":1},null,null,null,null,null,null,null,null,null,null,null,null,null,"Обобщение",null,null,{"$f":"IF(OR(MAX(D11:D18)=D13,MAX(D11:D18)-1=D13),1,0)","v":1}]
["Возможный профиль:",null,null,{"$f":"IF(SUM(O3,O4,O5)=3,L3,IF(SUM(O6,O7,O8)=3,L6,IF(SUM(O10,O11,O12)=3,L10,IF(SUM(O13,O14,O15)=3,L13,IF(SUM(O17,O18,O19)=3,L17,IF(SUM(O22,O23,O24)=3,L22,IF(SUM(O26,O27,O28)=3,L26,IF(SUM(O29,O30,O31)=3,L29,IF(SUM(O32,O33,O34)=3,L32,IF(SUM(O35,O36,O37)=3,L35,IF(SUM(O38,O39)=2,L38,D24)))))))))))","v":"Физико математический"},null,null,null,null,null,null,null,null,null,null,null,null,null,null,null,null,null,null,null,"Класификация",null,null,{"$f":"IF(MAX(D11:D18)=D12,1,0)","v":1},null,null,null,null,null,null,null,null,null,null,null,null,null,"Класификация",null,null,{"$f":"IF(OR(MAX(D11:D18)=D12,MAX(D11:D18)-1=D12),1,0)","v":1}]
[null,null,null,null,null,null,null,null,null,null,null,"Филологический",null,null,{"$f":"S22","v":1},"Склонность к эстетическим видам деятельности",null,null,{"$f":"IF(MAX(F2:F7)=F5,1,0)","v":1},"Словесно-логическое",null,null,{"$f":"IF(MAX(I11:I18)=I15,1,0)","v":1},"Гуманитарные науки",null,null,{"$f":"IF(MAX(D11:D18)=D16,1,0)","v":1},null,"Филологический",null,null,{"$f":"AJ22","v":1},"Склонность к эстетическим видам деятельности",null,null,{"$f":"IF(MAX(F2:F7)=F5,1,0)","v":1},"Словесно-логическое",null,null,{"$f":"IF(MAX(I11:I18)=I15,1,0)","v":1},"Гуманитарные науки",null,null,{"$f":"IF(OR(MAX(D11:D18)=D16,MAX(D11:D18)-1=D16),1,0)","v":1}]
["Мягкие рамки",null,null,null,null,null,null,null,null,null,null,null,null,null,{"$f":"IF(OR(W22=1,W23=1),1,0)","v":1},null,null,null,null,"Наглядно-образное",null,null,{"$f":"IF(MAX(I11:I18)=I16,1,0)","v":1},"Аналогии",null,null,{"$f":"IF(MAX(D11:D18)=D11,1,0)","v":1},null,null,null,null,{"$f":"IF(OR(AN22=1,AN23=1),1,0)","v":1},null,null,null,null,"Наглядно-образное",null,null,{"$f":"IF(MAX(I11:I18)=I16,1,0)","v":1},"Аналогии",null,null,{"$f":"IF(OR(MAX(D11:D18)=D11,MAX(D11:D18)-1=D11),1,0)","v":1}]
["Возможный профиль:",null,null,{"$f":"IF(SUM(AF3,AF4,AF5)=3,AC3,IF(SUM(AF6,AF7,AF8)=3,AC6,IF(SUM(AF10,AF11,AF12)=3,AC10,IF(SUM(AF13,AF14,AF15)=3,AC13,IF(SUM(AF17,AF18,AF19)=3,AC17,IF(SUM(AF22,AF23,AF24)=3,AC22,IF(SUM(AF26,AF27,AF28)=3,AC26,IF(SUM(AF29,AF30,AF31)=3,AC29,IF(SUM(AF32,AF33,AF34)=3,AC32,IF(SUM(AF35,AF36,AF37)=3,AC35,IF(SUM(AF38,AF39)=2,AC38,\"Профиль не выявлен\")))))))))))","v":"Физико математический"},null,null,null,null,null,null,null,null,null,null,{"$f":"IF(OR(AA22=1,AA23=1,AA24=1,AA25=1),1,0)","v":1},null,null,null,null,null,null,null,null,"Обобщение",null,null,{"$f":"IF(MAX(D11:D18)=D13,1,0)","v":1},null,null,null,null,{"$f":"IF(OR(AR22=1,AR23=1,AR24=1,AR25=1),1,0)","v":1},null,null,null,null,null,null,null,null,"Обобщение",null,null,{"$f":"IF(OR(MAX(D11:D18)=D13,MAX(D11:D18)-1=D13),1,0)","v":1}]
[null,null,null,null,null,null,null,null,null,null,null,null,null,null,null,null,null,null,null,null,null,null,null,"Классификация",null,null,{"$f":"IF(MAX(D11:D18)=D12,1,0)","v":1},null,null,null,null,null,null,null,null,null,null,null,null,null,"Классификация",null,null,{"$f":"IF(OR(MAX(D11:D18)=D12,MAX(D11:D18)-1=D12),1,0)","v":1}]
["Методика «Профиль»",null,null,null,null,null,null,null,null,null,null,"Информационно-технологический",null,null,{"$f":"S26","v":1},"Склонности к исследовательской (интелектуальной) деятельности",null,null,{"$f":"IF(MAX(F2:F7)=F3,1,0)","v":1},"Абстрактно-символическое",null,null,{"$f":"IF(MAX(I11:I18)=I13,1,0)","v":1},"Физика и математика",null,null,{"$f":"IF(MAX(D11:D18)=D18,1,0)","v":1},null,"Информационно-технологический",null,null,{"$f":"AJ26","v":1},"Склонности к исследовательской (интелектуальной) деятельности",null,null,{"$f":"IF(MAX(F2:F7)=F3,1,0)","v":1},"Абстрактно-символическое",null,null,{"$f":"IF(MAX(I11:I18)=I13,1,0)","v":1},"Физика и математика",null,null,{"$f":"IF(OR(MAX(D11:D18)=D18,MAX(D11:D18)-1=D18),1,0)","v":1}]
[{"$f":"Итог!A7","v":"Физика и математика"},null,null,null,null,{"$f":"ОП!M3","v":0},null,null,null,null,null,null,null,null,{"$f":"IF(OR(W26=1,W27=1),1,0)","v":1},null,null,null,null,"Словесно-логическое",null,null,{"$f":"IF(MAX(I11:I18)=I15,1,0)","v":1},"Поиск закономерностей",null,null,{"$f":"IF(MAX(D11:D18)=D14,1,0)","v":1},null,null,null,null,{"$f":"IF(OR(AN26=1,AN27=1),1,0)","v":1},null,null,null,null,"Словесно-логическое",null,null,{"$f":"IF(MAX(I11:I18)=I15,1,0)","v":1},"Поиск закономерностей",null,null,{"$f":"IF(OR(MAX(D11:D18)=D14,MAX(D11:D18)-1=D14),1,0)","v":1}]
[{"$f":"Итог!A8","v":"Химия и биология"},null,null,null,null,{"$f":"ОП!M4","v":0},null,null,null,null,null,null,null,null,{"$f":"IF(OR(AA26=1,AA27=1),1,0)","v":1},null,null,null,null,null,null,null,null,null,null,null,null,null,null,null,null,{"$f":"IF(OR(AR26=1,AR27=1),1,0)","v":1}]
[{"$f":"Итог!A9","v":"Радиотехника и электроника"},null,null,null,null,{"$f":"ОП!M5","v":0},null,null,null,null,null,"Аграрно-технический",null,null,{"$f":"IF(OR(S29=1,S31=1),1,0)","v":1},"Склонность к исследовательской",null,null,{"$f":"IF(MAX(F2:F7)=F3,1,0)","v":1},"Абстрактно-символическое",null,null,{"$f":"IF(MAX(I11:I18)=I13,1,0)","v":1},"Естественные науки",null,null,{"$f":"IF(MAX(D11:D18)=D17,1,0)","v":1},null,"Аграрно-технический",null,null,{"$f":"IF(OR(AJ29=1,AJ31=1),1,0)","v":1},"Склонность к исследовательской",null,null,{"$f":"IF(MAX(F2:F7)=F3,1,0)","v":1},"Абстрактно-символическое",null,null,{"$f":"IF(MAX(I11:I18)=I13,1,0)","v":1},"Естественные науки",null,null,{"$f":"IF(OR(MAX(D11:D18)=D17,MAX(D11:D18)-1=D17),1,0)","v":1}]
[{"$f":"Итог!A10","v":"Механика и конструирование"},null,null,null,null,{"$f":"ОП!M6","v":0},null,null,null,null,null,null,null,null,{"$f":"IF(OR(W29=1,W30=1),1,0)","v":1},null,null,null,null,"Предметно-действенное",null,null,{"$f":"IF(MAX(I11:I18)=I11,1,0)","v":1},"Поиск закономерностей",null,null,{"$f":"IF(MAX(D11:D18)=D14,1,0)","v":1},null,null,null,null,{"$f":"IF(OR(AN29=1,AN30=1),1,0)","v":1},null,null,null,null,"Предметно-действенное",null,null,{"$f":"IF(MAX(I11:I18)=I11,1,0)","v":1},"Поиск закономерностей",null,null,{"$f":"IF(OR(MAX(D11:D18)=D14,MAX(D11:D18)-1=D14),1,0)","v":1}]
[{"$f":"Итог!A11","v":"География и геология"},null,null,null,null,{"$f":"ОП!M7","v":0},null,null,null,null,null,null,null,null,{"$f":"IF(OR(AA29=1,AA30=1),1,0)","v":1},"и экстремальной деятельности",null,null,{"$f":"IF(MAX(F2:F7)=F6,1,0)","v":1},null,null,null,null,null,null,null,null,null,null,null,null,{"$f":"IF(OR(AR29=1,AR30=1),1,0)","v":1},"и экстремальной деятельности",null,null,{"$f":"IF(MAX(F2:F7)=F6,1,0)","v":1}]
[{"$f":"Итог!A12","v":"Литература и искусство"},null,null,null,null,{"$f":"ОП!M8","v":0},null,null,null,null,null,"Индустриально-технологический",null,null,{"$f":"S32","v":1},"Склонность к практической деятельности",null,null,{"$f":"IF(MAX(F2:F7)=F4,1,0)","v":1},"Предметно-действенное",null,null,{"$f":"IF(MAX(I11:I18)=I11,1,0)","v":1},"Поиск закономерностей",null,null,{"$f":"IF(MAX(D11:D18)=D14,1,0)","v":1},null,"Индустриально-технологический",null,null,{"$f":"AJ32","v":1},"Склонность к практической деятельности",null,null,{"$f":"IF(MAX(F2:F7)=F4,1,0)","v":1},"Предметно-действенное",null,null,{"$f":"IF(MAX(I11:I18)=I11,1,0)","v":1},"Поиск закономерностей",null,null,{"$f":"IF(OR(MAX(D11:D18)=D14,MAX(D11:D18)-1=D14),1,0)","v":1}]
[{"$f":"Итог!A13","v":"История и политика"},null,null,null,null,{"$f":"ОП!M9","v":0},null,null,null,null,null,null,null,null,{"$f":"IF(OR(W32=1,W33=1),1,0)","v":1},null,null,null,null,"Наглядно-образное",null,null,{"$f":"IF(MAX(I11:I18)=I16,1,0)","v":1},null,null,null,null,null,null,null,null,{"$f":"IF(OR(AN32=1,AN33=1),1,0)","v":1},null,null,null,null,"Наглядно-образное",null,null,{"$f":"IF(MAX(I11:I18)=I16,1,0)","v":1}]
[{"$f":"Итог!A14","v":"Педагогика и медицина"},null,null,null,null,{"$f":"ОП!M10","v":0},null,null,null,null,null,null,null,null,{"$f":"AA32","v":1},null,null,null,null,null,null,null,null,null,null,null,null,null,null,null,null,{"$f":"AR32","v":1}]
[{"$f":"Итог!A15","v":"Предпринимательство и домоводство"},null,null,null,null,{"$f":"ОП!M11","v":0},null,null,null,null,null,"Художественно-эстетический",null,null,{"$f":"S35","v":1},"Склонность к практической деятельности",null,null,{"$f":"IF(MAX(F2:F7)=F4,1,0)","v":1},"Наглядно-образное",null,null,{"$f":"IF(MAX(I11:I18)=I16,1,0)","v":1},"Гуманитарные науки",null,null,{"$f":"IF(MAX(D11:D18)=D16,1,0)","v":1},null,"Художественно-эстетический",null,null,{"$f":"AJ35","v":1},"Склонность к практической деятельности",null,null,{"$f":"IF(MAX(F2:F7)=F4,1,0)","v":1},"Наглядно-образное",null,null,{"$f":"IF(MAX(I11:I18)=I16,1,0)","v":1},"Гуманитарные науки",null,null,{"$f":"IF(OR(MAX(D11:D18)=D16,MAX(D11:D18)-1=D16),1,0)","v":1}]
[{"$f":"Итог!A16","v":"Спорт и военное дело"},null,null,null,null,{"$f":"ОП!M12","v":0},null,null,null,null,null,null,null,null,{"$f":"IF(OR(W35=1,W36=1),1,0)","v":1},null,null,null,null,"Предметно-действенное",null,null,{"$f":"IF(MAX(I11:I18)=I11,1,0)","v":1},null,null,null,null,null,null,null,null,{"$f":"IF(OR(AN35=1,AN36=1),1,0)","v":1},null,null,null,null,"Предметно-действенное",null,null,{"$f":"IF(MAX(I11:I18)=I11,1,0)","v":1}]
[null,null,null,null,null,null,null,null,null,null,null,null,null,null,{"$f":"AA35","v":1},null,null,null,null,null,null,null,null,null,null,null,null,null,null,null,null,{"$f":"AR35","v":1}]
[null,null,null,null,null,null,null,null,null,null,null,"Оборонно-спортивный",null,null,{"$f":"S38","v":1},"Склонность к практической деятельности",null,null,{"$f":"IF(MAX(F2:F7)=F4,1,0)","v":1},"Предметно-действенное",null,null,{"$f":"IF(MAX(I11:I18)=I11,1,0)","v":1},null,null,null,null,null,"Оборонно-спортивный",null,null,{"$f":"AJ38","v":1},"Склонность к практической деятельности",null,null,{"$f":"IF(MAX(F2:F7)=F4,1,0)","v":1},"Предметно-действенное",null,null,{"$f":"IF(MAX(I11:I18)=I11,1,0)","v":1}]
[null,null,null,null,null,null,null,null,null,null,null,null,null,null,{"$f":"W38","v":1},null,null,null,null,null,null,null,null,null,null,null,null,null,null,null,null,{"$f":"AN38","v":1}]

{"sheet":"Итог","index":12,"n_rows":47,"n_cols":11,"rows_kept":47,"cut":false,"hidden":false,"merged":[[24,9,25,9],[24,10,25,10],[23,0,23,2],[24,0,24,2],[25,0,25,2],[2,9,2,10],[3,9,3,10],[2,1,2,7],[3,1,3,7],[0,0,0,10],[9,0,9,4],[10,0,10,4],[11,0,11,4],[6,0,6,4],[7,0,7,4],[8,0,8,4],[12,0,12,4],[13,0,13,4],[14,0,14,4],[15,0,15,4],[46,8,46,10],[17,0,17,3],[18,0,18,2],[19,0,19,2],[20,0,20,2],[21,0,21,2],[22,0,22,2],[18,9,19,9],[18,10,19,10],[17,5,17,10],[20,9,21,9],[20,10,21,10],[15,5,15,6],[6,5,6,6],[7,5,7,6],[8,5,8,6],[9,5,9,6],[10,5,10,6],[10,7,10,10],[11,5,11,6],[12,5,12,6],[13,5,13,6],[14,5,14,6],[11,7,11,10],[12,7,12,10],[13,7,13,10],[14,7,14,10],[15,7,15,10],[30,0,30,4],[31,0,31,4],[32,0,32,4],[33,0,33,4],[28,6,28,10],[29,6,29,10],[31,6,31,10],[32,6,32,10],[35,1,35,6],[5,0,5,10],[6,7,6,10],[7,7,7,10],[8,7,8,10],[9,7,9,10],[33,6,33,10],[18,5,19,8],[20,5,21,8],[22,5,22,8],[23,5,23,8],[24,5,25,8],[27,0,27,10],[30,6,30,10],[28,0,28,4],[29,0,29,4]]}
["Методики отбора в профильные классы"]
[]
["ФИО",{"$f":"PROPER(Профиль!E2)","v":""},null,null,null,null,null,null,"Класс",{"$f":"Профиль!N2","v":0}]
["Возраст",{"$f":"CONCATENATE(Профиль!E3, \" лет\")","v":" лет"},null,null,null,null,null,null,"Дата",{"$f":"TODAY()","v":"2018-02-16"}]
[]
["Методика «Профиль»"]
[{"$f":"ОП!N3","v":"Физика и математика"},null,null,null,null,{"$f":"ОП!R3","v":"0 / 5"},null,{"$f":"IF(ОП!M3<=2,\"Интерес слабо выражен\",IF(AND(ОП!M3>=3,ОП!M3<=4),\"Выраженный интерес\",IF(ОП!M3=5,\"Интерес ярко выражен\")))","v":"Интерес слабо выражен"}]
[{"$f":"ОП!N4","v":"Химия и биология"},null,null,null,null,{"$f":"ОП!R4","v":"0 / 5"},null,{"$f":"IF(ОП!M4<=2,\"Интерес слабо выражен\",IF(AND(ОП!M4>=3,ОП!M4<=4),\"Выраженный интерес\",IF(ОП!M4=5,\"Интерес ярко выражен\")))","v":"Интерес слабо выражен"}]
[{"$f":"ОП!N5","v":"Радиотехника и электроника"},null,null,null,null,{"$f":"ОП!R5","v":"0 / 5"},null,{"$f":"IF(ОП!M5<=2,\"Интерес слабо выражен\",IF(AND(ОП!M5>=3,ОП!M5<=4),\"Выраженный интерес\",IF(ОП!M5=5,\"Интерес ярко выражен\")))","v":"Интерес слабо выражен"}]
[{"$f":"ОП!N6","v":"Механика и конструирование"},null,null,null,null,{"$f":"ОП!R6","v":"0 / 5"},null,{"$f":"IF(ОП!M6<=2,\"Интерес слабо выражен\",IF(AND(ОП!M6>=3,ОП!M6<=4),\"Выраженный интерес\",IF(ОП!M6=5,\"Интерес ярко выражен\")))","v":"Интерес слабо выражен"}]
[{"$f":"ОП!N7","v":"География и геология"},null,null,null,null,{"$f":"ОП!R7","v":"0 / 5"},null,{"$f":"IF(ОП!M7<=2,\"Интерес слабо выражен\",IF(AND(ОП!M7>=3,ОП!M7<=4),\"Выраженный интерес\",IF(ОП!M7=5,\"Интерес ярко выражен\")))","v":"Интерес слабо выражен"}]
[{"$f":"ОП!N8","v":"Литература и искусство"},null,null,null,null,{"$f":"ОП!R8","v":"0 / 5"},null,{"$f":"IF(ОП!M8<=2,\"Интерес слабо выражен\",IF(AND(ОП!M8>=3,ОП!M8<=4),\"Выраженный интерес\",IF(ОП!M8=5,\"Интерес ярко выражен\")))","v":"Интерес слабо выражен"}]
[{"$f":"ОП!N9","v":"История и политика"},null,null,null,null,{"$f":"ОП!R9","v":"0 / 5"},null,{"$f":"IF(ОП!M9<=2,\"Интерес слабо выражен\",IF(AND(ОП!M9>=3,ОП!M9<=4),\"Выраженный интерес\",IF(ОП!M9=5,\"Интерес ярко выражен\")))","v":"Интерес слабо выражен"}]
[{"$f":"ОП!N10","v":"Педагогика и медицина"},null,null,null,null,{"$f":"ОП!R10","v":"0 / 5"},null,{"$f":"IF(ОП!M10<=2,\"Интерес слабо выражен\",IF(AND(ОП!M10>=3,ОП!M10<=4),\"Выраженный интерес\",IF(ОП!M10=5,\"Интерес ярко выражен\")))","v":"Интерес слабо выражен"}]
[{"$f":"ОП!N11","v":"Предпринимательство и домоводство"},null,null,null,null,{"$f":"ОП!R11","v":"0 / 5"},null,{"$f":"IF(ОП!M11<=2,\"Интерес слабо выражен\",IF(AND(ОП!M11>=3,ОП!M11<=4),\"Выраженный интерес\",IF(ОП!M11=5,\"Интерес ярко выражен\")))","v":"Интерес слабо выражен"}]
[{"$f":"ОП!N12","v":"Спорт и военное дело"},null,null,null,null,{"$f":"ОП!R12","v":"0 / 5"},null,{"$f":"IF(ОП!M12<=2,\"Интерес слабо выражен\",IF(AND(ОП!M12>=3,ОП!M12<=4),\"Выраженный интерес\",IF(ОП!M12=5,\"Интерес ярко выражен\")))","v":"Интерес слабо выражен"}]
[]
["Методика \"Эрудит\"",null,null,null,null,"Методика «Тип мышления»"]
["Аналогии",null,null,{"$f":"CONCATENATE(ОЭ!C27,\" / 20\")","v":"0 / 20"},null,"Предметно-действенное",null,null,null,{"$f":"CONCATENATE(ОТМ!J11,\" / 8\")","v":"0 / 8"},{"$f":"ОТМ!K11","v":"Низкий"}]
["Классификация",null,null,{"$f":"CONCATENATE(ОЭ!E27,\" / 20\")","v":"0 / 20"}]
["Обобщение",null,null,{"$f":"CONCATENATE(ОЭ!G27,\" / 20\")","v":"0 / 20"},null,"Абстрактно-символическое",null,null,null,{"$f":"CONCATENATE(ОТМ!J12,\" / 8\")","v":"0 / 8"},{"$f":"ОТМ!K12","v":"Низкий"}]
["Закономерности",null,null,{"$f":"CONCATENATE(ОЭ!I27,\" / 20\")","v":"0 / 20"}]
["Общественные науки",null,null,{"$f":"CONCATENATE(ОЭ!H8,\" / 20\")","v":"0 / 20"},null,"Словесно-логическое",null,null,null,{"$f":"CONCATENATE(ОТМ!J13, \" / 8\")","v":"0 / 8"},{"$f":"ОТМ!K13","v":"Низкий"}]
["Гуманитарные науки",null,null,{"$f":"CONCATENATE(ОЭ!H14,\" / 20\")","v":"0 / 20"},null,"Наглядно-образное",null,null,null,{"$f":"CONCATENATE(ОТМ!J14,\" / 8\")","v":"0 / 8"},{"$f":"ОТМ!K14","v":"Низкий"}]
["Естественные науки",null,null,{"$f":"CONCATENATE(ОЭ!H20,\" / 20\")","v":"0 / 20"},null,"Креативность (творческое)",null,null,null,{"$f":"CONCATENATE(ОТМ!J15,\" / 8\")","v":"0 / 8"},{"$f":"ОТМ!K15","v":"Низкий"}]
["Физика-математика",null,null,{"$f":"CONCATENATE(ОЭ!H26,\" / 20\")","v":"0 / 20"}]
[]
["Опросник профессиональных склонностей"]
["Cклонность к работе с людьми",null,null,null,null,{"$f":"CONCATENATE(ОПС!Z2,\" / 12\")","v":"0 / 12"},{"$f":"IF(AND(I29>=0,I29<=3),\"Профессиональная склонность не выражена\",IF(AND(I29>=4,I29<=6),\"Cлабо выраженная профессиональная склонность\",IF(AND(I29>=7,I29<=9),\"Склонность к определенному виду деятельности\",IF(AND(I29>=10,I29<=12),\"Ярко выраженная профессиональная склонность\"))))","v":"Профессиональная склонность не выражена"}]
["Cклонность к интеллектуальной работе",null,null,null,null,{"$f":"CONCATENATE(ОПС!Z3,\" / 12\")","v":"0 / 12"},{"$f":"IF(AND(I30>=0,I30<=3),\"Профессиональная склонность не выражена\",IF(AND(I30>=4,I30<=6),\"Cлабо выраженная профессиональная склонность\",IF(AND(I30>=7,I30<=9),\"Склонность к определенному виду деятельности\",IF(AND(I30>=10,I30<=12),\"Ярко выраженная профессиональная склонность\"))))","v":"Профессиональная склонность не выражена"},null,null,{"$f":"IF(AND(I30>=0,I30<=3),\"Профессиональная склонность не выражена\",IF(AND(I30>=4,I30<=6),\"Cлабо выраженная профессиональная склонность\",IF(AND(I30>=7,I30<=9),\"Склонность к определенному виду деятельности\",IF(AND(I30>=10,I30<=12),\"Ярко выраженная профессиональная склонность\"))))","v":"Профессиональная склонность не выражена"}]
["Cклонность к практической деятельности",null,null,null,null,{"$f":"CONCATENATE(ОПС!Z4,\" / 12\")","v":"0 / 12"},"Профессиональная склонность не выражена",null,null,"Профессиональная склонность не выражена"]
["Cклонность к эстетическим видам деятельности",null,null,null,null,{"$f":"CONCATENATE(ОПС!Z5,\" / 12\")","v":"0 / 12"},"Профессиональная склонность не выражена",null,null,"Профессиональная склонность не выражена"]
["Cклонность к экстремальным видам деятельности",null,null,null,null,{"$f":"CONCATENATE(ОПС!Z6,\" / 12\")","v":"0 / 12"},"Профессиональная склонность не выражена",null,null,"Профессиональная склонность не выражена"]
["Cклонность к планово-экономической деятельности",null,null,null,null,{"$f":"CONCATENATE(ОПС!Z7,\" / 12\")","v":"0 / 12"},"Профессиональная склонность не выражена",null,null,"Профессиональная склонность не выражена"]
[]
[]
[]
[]
[]
[]
[]
[]
[]
[]
[]
[]
[null,null,null,null,null,null,null,null,"http://eschool.by/psychology/"]